Cogmind - Beta 16 @@@ ROGUE MODE // 2025.11.19 @ 22:53:48 Player: Wyvric Result: Assimilated 0b10! Performance ------------- Evolutions (9) 4500 Regions Visited (28) 5600 Robots Destroyed (1327) 6635 Value Destroyed (85321) 85321 Prototype IDs (369) 7380 Alien Tech Used (5) 1000 Bonus (114410) 114410 TOTAL SCORE: 224846 Bonus ------- Triggered High Security 1500 High Alert Combat Kills 62193 Follower Combat Kills 3561 Entered Garrisons 1200 Used RIF Installer 3500 Network Hubs Disabled 600 Aligned with FarCom 300 Built Enhanced Grunts 300 A7 Reached Mainframe 300 Met R17 at Cetus 500 Met R17 at Research 2000 Scanned by Researcher 500 Destroyed Superfortress 15000 Destroyed MAIN.C Guards 500 Met MAIN.C 5000 Destroyed MAIN.C Shell 5000 Destroyed MAIN.C 10000 Used 0b10 Conduit 2000 Win 3000 Friendly Fire -2544 Cogmind --------- Core Integrity 919/1600 Matter 300/300 Energy 5487/5491 System Corruption 1% Temperature Cool (3) Movement Hovering (87) Location 0b10 Command Parts ------- > --- POWER (3) -------- Quantum-Graviton Reactor > --- PROPULSION (6) --- Hovering Gyrokinetic-Centrium Exoskeleton > --- UTILITY (11) ----- Armored Scrap Engine Concept Phasing Heat Sink Concept Thermoelectric Network Concept Antigrav Storage Unit Concept Hypertargeting System Experimental Core Analyzer Improved Armor Integrity Analyzer Experimental Reaction Control System Advanced Phase Shifter AEGIS Remote Shield > --- WEAPON (5) ------- Hvy. Kinetic Nova Construct/C > --- INVENTORY (25) --- Experimental Antimatter Reactor Zero-point Reactor Experimental Coolant Injector Experimental Coolant Injector Concept Thermoelectric Network Experimental Energy Well (600) Experimental Energy Well (600) Experimental Matter Compressor (500) Concept NT7 Matterbank (750) Concept NT7 Matterbank (486) Concept Weapon Articulator Experimental Core Analyzer Advanced Weapon Cycler Advanced Phase Shifter Centrium Heavy Armor Plating Heavy Regenerative Plating Graphene Brace Advanced Remote Force Field AEGIS Remote Shield Concept Impact Drone Bay (6/6) High-powered Transdimensional Reconstructor Subatomic Replicator Railgun Peak State ------------ > --- POWER ------------ Quantum-Graviton Reactor > --- PROPULSION ------- Hovering Gyrokinetic-Centrium Exoskeleton > --- UTILITY ---------- Armored Scrap Engine Concept Phasing Heat Sink Concept Thermoelectric Network Concept Antigrav Storage Unit Concept Phase Shift Module Heavy Regenerative Plating Concept Beam Splitter Experimental EM Shield AEGIS Remote Shield > --- WEAPON ----------- Neutron Missile Launcher Hvy. Kinetic Nova Construct/C > --- INVENTORY -------- Experimental Antimatter Reactor Improved Antigrav System Improved Antigrav System Improved Antigrav System Improved Antigrav System Improved Antigrav System Improved Antigrav System Experimental Coolant Injector Concept Thermoelectric Network Concept NT7 Matterbank Concept NT7 Matterbank Experimental Active Sensor Suite Concept Hypertargeting System Concept Weapon Articulator Graphene Brace Experimental Force Field Experimental Force Field Concept Impact Drone Bay High-powered Transdimensional Reconstructor Subatomic Replicator Concept Lightning Penetrator Concept Lightning Penetrator Concept EMP Blanket Launcher Concept EMP Blanket Launcher [Rating: 270] Favorites ----------- Power Constructs Engine Light Deuterium Engine Power Core Light Nuclear Core Reactor Constructs Propulsion Constructs Treads Light Treads Leg Aluminum Leg Wheel Wheel Hover Unit Constructs Flight Unit Field Propulsion Drive Utility Armored Scrap Engine Device Armored Scrap Engine Storage Cargo Storage Unit Processor Experimental Core Analyzer Hackware Relay Coupler [NC] Protection Heavy Regenerative Plating Artifact Phase Armor Weapon Constructs Energy Gun EM Pulse Gun Energy Cannon Enhanced Nova Cannon Ballistic Gun Gauss Rifle Ballistic Cannon Constructs Launcher Ragnarok Missile Launcher Special Weapon Advanced Remote Datajack Impact Weapon Heavy Mace Slashing Weapon Dual-blade Saw Piercing Weapon Enhanced Force Lance Build | -11 -10 -10 -10 -9 -8 -8 -8 -8 -6 -6 -6 -6 -6 -6 -5 -5 -5 -5 -4 -4 -3 -3 -3 -2 -2 -2 -1 -1 ------- Run | Yrd Mat Min Exi Min Mat Sto Gar Rec Fac Ext Cet Arc Hub Gar Fac Gar Fac Gar Fac Gar Res Tes Gar Res Qua Frg Acc Com Slots Evolved 18 | . . . . . 4 . . . 4 . . . . . 2 . . . 2 . 2 . . 2 . . 2 . Power 2 | . . . . . . . . . . . . . . . 1 . . . 1 . . . . . . . . . Propulsion 4 | . . . . . 1 . . . 2 . . . . . . . . . . . 1 . . . . . . . Utility 9 | . . . . . 1 . . . 2 . . . . . . . . . 1 . 1 . . 2 . . 2 . Weapon 3 | . . . . . 2 . . . . . . . . . 1 . . . . . . . . . . . . . Parts Attached 327 | 7 11 4 5 . 16 5 28 6 11 7 3 6 5 7 3 13 1 8 . 6 18 4 10 10 16 61 30 26 Power 12 | 1 2 1 . . 1 1 5 1 . . . . . . . . . . . . . . . . . . . . Engine 8 | 1 2 1 . . 1 1 1 1 . . . . . . . . . . . . . . . . . . . . Core 4 | . . . . . . . 4 . . . . . . . . . . . . . . . . . . . . . Reactor . | . . . . . . . . . . . . . . . . . . . . . . . . . . . . . Propulsion 27 | 2 1 1 . . 7 . 7 2 2 . . . . . . . . . . . 1 . 1 . . 3 . . Treads 12 | 2 . . . . 5 . 4 1 . . . . . . . . . . . . . . . . . . . . Leg 6 | . . . . . . . 3 1 . . . . . . . . . . . . . . . . . 2 . . Wheel 4 | . 1 1 . . 1 . . . 1 . . . . . . . . . . . . . . . . . . . Hover 4 | . . . . . 1 . . . 1 . . . . . . . . . . . . . 1 . . 1 . . Flight 1 | . . . . . . . . . . . . . . . . . . . . . 1 . . . . . . . Utility 192 | 2 5 . 1 . 3 1 5 2 6 4 2 6 4 4 3 7 1 5 . 4 15 3 8 6 14 42 21 18 Device 118 | 1 1 . . . 1 1 2 1 3 4 1 4 2 . . 4 1 . . 1 8 3 7 4 10 33 13 13 Storage 14 | 1 2 . 1 . . . 1 . 1 . . . . . . 1 . 2 . . 1 . 1 . . 1 1 1 Processor 20 | . 1 . . . 1 . . . 2 . . . . 1 . . . . . . 2 . . . 1 5 6 1 Hackware 23 | . . . . . 1 . . . . . . . 2 3 3 2 . 3 . 3 2 . . 1 2 1 . . Protection 16 | . 1 . . . . . 2 1 . . 1 2 . . . . . . . . 2 . . 1 . 2 1 3 Artifact 1 | . . . . . . . . . . . . . . . . . . . . . . . . . 1 . . . Weapon 96 | 2 3 2 4 . 5 3 11 1 3 3 1 . 1 3 . 6 . 3 . 2 2 1 1 4 2 16 9 8 Energy Gun 22 | 1 3 2 1 . . . 1 . 2 . 1 . . 1 . 1 . 1 . . . . . 1 . 5 2 . Energy Cannon 6 | . . . 2 . . . . . . . . . . . . . . . . . . . . 1 . 1 1 1 Ballistic Gun 29 | 1 . . . . 1 1 10 . . 3 . . 1 1 . 3 . 1 . 1 . . . . . 3 2 1 Ballistic Cannon 9 | . . . 1 . . . . . . . . . . . . . . 1 . . 1 . . . . 2 . 4 Launcher 14 | . . . . . . 1 . . 1 . . . . . . 1 . . . . . . . 1 . 4 4 2 Special Weapon 9 | . . . . . . 1 . 1 . . . . . 1 . 1 . . . 1 1 1 1 . 1 . . . Impact Weapon 4 | . . . . . 4 . . . . . . . . . . . . . . . . . . . . . . . Slashing Weapon 1 | . . . . . . . . . . . . . . . . . . . . . . . . . 1 . . . Piercing Weapon 2 | . . . . . . . . . . . . . . . . . . . . . . . . 1 . 1 . . Special Melee Weapon . | . . . . . . . . . . . . . . . . . . . . . . . . . . . . . Unidentified Prototypes 51 | . . . 2 . 3 3 . 1 . . 1 . . . . . . . . 1 2 . . . 7 25 3 3 Corrupted Parts 1 | . . . . . . . 1 . . . . . . . . . . . . . . . . . . . . . System Corruption 6 | . . . . . . . 6 . . . . . . . . . . . . . . . . . . . . . Parts Lost 34 | . 1 2 . . 1 . 8 . 1 1 . . 1 1 . . . . . . . 1 . . 1 5 8 3 Power 5 | . . . . . . . 3 . 1 1 . . . . . . . . . . . . . . . . . . Propulsion 8 | . 1 . . . 1 . 4 . . . . . . . . . . . . . . 1 . . 1 . . . Utility 11 | . . . . . . . 1 . . . . . . . . . . . . . . . . . . 4 4 2 Weapon 10 | . . 2 . . . . . . . . . . 1 1 . . . . . . . . . . . 1 4 1 Highest Loss Streak 5 | . 1 1 . . 1 . 5 . 1 1 . . 1 1 . . . . . . . 1 . . 1 1 2 1 To Critical Strikes 1 | . . . . . . . . . . . . . . . . . . . . . . . . . . 1 . . Average Backups 22 | 5 11 14 11 10 9 9 11 17 15 22 23 22 23 23 23 26 27 27 29 28 28 26 27 28 27 26 22 23 Power 1 | . 1 3 1 1 . . . . . . . 2 2 3 1 1 1 1 3 . . . . . . . 1 1 Propulsion 2 | 3 4 4 6 6 4 4 2 6 7 6 8 5 5 1 1 . 1 . 1 1 . . . . . . 2 2 Utility 12 | . 2 3 1 . . 1 1 4 4 8 6 8 8 11 11 16 18 19 19 24 25 22 22 22 19 17 12 13 Weapon 4 | . 3 3 2 3 4 4 5 4 2 5 6 4 6 7 8 7 5 5 4 2 1 3 5 4 4 5 4 4 Tool/Special . | . . . . . . . . . . . . . . . . . . . . . . . . . . . . . Unused Backups 285 | . . 2 1 . 6 2 3 16 5 11 3 3 2 17 6 16 1 12 1 24 9 14 5 5 6 42 40 33 Power 19 | . . . 1 . 1 . . 1 1 1 . . . 2 1 . . . . 3 . . . . . 5 1 2 Propulsion 82 | . . 2 . . 4 . . 11 2 1 1 2 . 6 1 4 . 3 1 . 3 2 . 1 2 7 22 7 Utility 98 | . . . . . . 1 2 3 1 4 1 1 1 6 1 4 1 5 . 16 6 7 1 3 3 16 3 12 Weapon 77 | . . . . . 1 1 1 1 1 5 1 . . 3 2 7 . 4 . 5 . 5 4 . . 12 14 10 Tool/Special 9 | . . . . . . . . . . . . . 1 . 1 1 . . . . . . . 1 1 2 . 2 Average Slot Usage (%) 56 | . 98 100 99 100 95 99 93 72 50 49 52 52 52 49 47 38 41 40 41 42 42 45 45 46 44 43 48 52 Engine 2 | . 14 14 14 14 9 9 . 6 5 5 6 6 6 2 . 2 . . . . . . . . . . . . Core 1 | . . . . . . . 8 2 . . . . . 1 . . 5 5 3 . . . 3 3 . . . . Reactor 2 | . . . . . . . . . . . . . . 1 5 1 . . 1 4 4 4 . . 4 3 4 4 Treads 4 | . 16 1 . . 22 27 23 8 1 3 6 5 4 . . 4 5 5 5 . . . . . . . . 1 Leg 1 | . . . . . . . 2 3 2 1 . . 1 6 5 . . . . . . . . . . . 2 1 Wheel 1 | . 10 26 28 28 4 . . 4 2 1 . . . . . . . . . . . . . . . . . . Device 15 | . 8 1 14 14 2 9 7 8 18 19 17 15 13 12 8 10 11 10 10 10 9 15 19 15 9 17 25 24 Storage 5 | . 14 14 14 14 9 9 8 9 6 6 6 6 6 6 5 5 5 5 5 5 4 4 4 4 4 4 4 4 Hackware 1 | . . . . . 8 9 1 . . . . . 1 . 6 . . . . 2 6 2 . 1 2 . . . Protection 2 | . 5 12 . . . . 6 2 . . 2 2 3 5 . . . . 3 2 . . . 3 2 3 4 3 Energy Gun 1 | . 21 28 18 14 . . . 2 1 . 3 . . . . . . . . . . . . . . . . . Energy Cannon 1 | . . . . . . . . 1 4 . . . . 2 1 4 5 1 4 1 . . 2 2 3 2 1 1 Ballistic Gun 3 | . 6 . . . . . 20 20 . 2 1 2 . 1 . . . 1 . . 1 . . . . . 1 . Ballistic Cannon 2 | . . . 8 14 . . . 1 1 6 6 5 6 3 4 . . 3 . 3 4 4 1 1 3 2 2 3 Special Weapon 1 | . . . . . . . 3 . 2 . . 3 5 2 4 . . 1 . 3 1 4 4 1 1 . . . Impact Weapon 2 | . . . . . 33 35 9 . . . . . . . . . . . . . . . . . . . . . Peak Build Rating 270 | 9 10 13 31 23 37 40 53 57 84 86 93 113 112 106 119 118 109 117 140 141 152 155 179 185 198 255 270 261 Average Rating 140 | 6 8 9 19 23 33 36 37 47 74 77 86 105 107 94 101 101 108 110 133 134 139 151 165 179 185 220 254 251 On Entrance 99 | . 9 8 13 23 23 37 36 43 57 74 81 93 111 99 93 119 108 108 117 137 131 152 155 170 178 193 248 256 Avg Prop Armor Cover (%) 3 | . 11 11 . . . . . 4 14 . . . . . . . . . . . . . 1 1 1 . . . Naked Turns 17 | . . . . . . . 17 . . . . . . . . . . . . . . . . . . . . . Heaviest Build 330 | 13 30 34 52 38 45 45 66 66 115 117 126 135 135 130 154 201 201 200 212 215 237 236 260 305 316 330 196 188 Greatest Support 474 | 40 40 20 20 20 69 69 69 64 105 106 73 158 158 158 104 225 225 289 289 307 325 326 318 318 318 474 246 217 Greatest Overweight (x) 9 | . 9 2 2 1 2 . 1 6 6 1 1 2 . 1 1 1 . . . . . . . . . 4 3 1 Average Overweight (x) . | . 1 1 1 1 . . . 1 1 1 1 . . . 1 . . . . . . . . . . . . . Largest Inventory Capacity 30 | 8 15 15 15 15 15 15 20 20 25 25 25 25 25 25 25 30 30 30 30 30 30 30 30 30 30 30 25 25 Average Capacity 24 | 7 13 15 15 15 15 15 17 20 22 25 25 25 25 25 25 29 30 29 30 30 30 30 30 30 30 28 25 25 Most Carried 30 | 8 15 15 15 15 15 15 20 20 20 25 25 25 25 25 25 30 30 30 30 30 30 30 30 30 30 30 25 25 Average Carried 23 | 5 11 14 14 15 14 14 16 18 19 24 24 23 24 24 24 28 29 29 29 29 29 29 29 29 29 28 23 24 Final Capacity 30 | 8 15 15 15 15 15 15 20 20 25 25 25 25 25 25 25 30 30 30 30 30 30 30 30 30 30 25 25 25 Final Carried 30 | 8 15 14 15 15 15 15 18 20 20 25 25 25 24 25 24 29 30 30 30 30 30 30 29 30 30 23 24 25 Scrap Engine Consumption 590 | . . . . . . . . 57 20 27 19 9 7 32 11 29 1 37 2 28 16 11 30 12 12 115 80 35 Constructs Created 8 | . . . . . . . . 3 1 1 . . . . . . . . . . . . . . . 1 2 . Constructs Modified 258 | . . . . . . . . 13 15 14 2 10 4 11 5 14 . 9 5 13 8 3 22 5 2 52 33 18 Class Distribution -------------------- 29% | Construct 14% | Bothacker-Construct 13% | Botlord-Construct 9% | Hauler-Construct 9% | Mutant 8% | Commander-Construct 4% | Scavenger-Tank 3% | Scavenger-Construct Dominant Class ---------------- Mutant | -10/Materials Mutant | -10/Mines Mutant | -10/Exiles Mutant | -9/Mines Mutant | -8/Materials Commander-Gladiator | -8/Storage Scavenger-Tank | -8/Garrison Commander-Construct | -8/Recycling Construct | -6/Factory Construct | -6/Extension Commander-Construct | -6/Cetus Commander-Construct | -6/Archives Commander-Construct | -6/Hub_04(d) Bothacker-Construct | -6/Garrison Bothacker-Construct | -5/Factory Bothacker-Construct | -5/Garrison Bothacker-Construct | -5/Factory Bothacker-Construct | -5/Garrison Bothacker-Construct | -4/Factory Botlord-Construct | -4/Garrison Botlord-Construct | -3/Research Botlord-Construct | -3/Testing Botlord-Construct | -3/Garrison Botlord-Construct | -2/Research Botlord-Construct | -2/Quarantine Hauler-Construct | -2/Protoforge Construct | -1/Access Construct | -1/Command Resources | -11 -10 -10 -10 -9 -8 -8 -8 -8 -6 -6 -6 -6 -6 -6 -5 -5 -5 -5 -4 -4 -3 -3 -3 -2 -2 -2 -1 -1 ----------- Run | Yrd Mat Min Exi Min Mat Sto Gar Rec Fac Ext Cet Arc Hub Gar Fac Gar Fac Gar Fac Gar Res Tes Gar Res Qua Frg Acc Com Matter Collected 49461 | 236 253 51 . 99 227 147 1310 1042 280 822 303 239 311 634 96 308 . 960 57 2087 1550 255 2617 556 1487 13870 11148 8516 Remotely 2659 | . . . . . . . . . . . . . . . . . . . . . . . . . . 2659 . . Salvage Created 92909 | 142 832 194 . 57 837 648 1365 1956 1008 2500 349 363 985 1523 1563 2435 74 2217 104 1843 477 462 1984 367 2046 19682 30826 16070 Parts 3294 | 13 58 11 . 5 21 17 59 78 39 104 19 15 47 73 48 102 2 99 5 96 14 30 73 20 111 770 837 528 Haulers Intercepted 16 | . 2 . . . 2 2 . 3 . . . . . . . . . . . . 1 . . . 1 . 5 . Recyclers Shooed 7 | 1 1 . . . . 2 . 1 . . . . . . 1 . . . . . . . . 1 . . . . Parts Field Recycled . | . . . . . . . . . . . . . . . . . . . . . . . . . . . . . Retrieved Matter . | . . . . . . . . . . . . . . . . . . . . . . . . . . . . . Parts Self-Destructed . | . . . . . . . . . . . . . . . . . . . . . . . . . . . . . Prevented . | . . . . . . . . . . . . . . . . . . . . . . . . . . . . . Parts Restored 11 | . . . . . . . . . . . . . . . . . . . . . . . . . . 11 . . Faulty 11 | . . . . . . . . . . . . . . . . . . . . . . . . . . 11 . . Kills | -11 -10 -10 -10 -9 -8 -8 -8 -8 -6 -6 -6 -6 -6 -6 -5 -5 -5 -5 -4 -4 -3 -3 -3 -2 -2 -2 -1 -1 ------- Run | Yrd Mat Min Exi Min Mat Sto Gar Rec Fac Ext Cet Arc Hub Gar Fac Gar Fac Gar Fac Gar Res Tes Gar Res Qua Frg Acc Com Combat Hostiles Destroyed 1182 | . 16 7 . 1 9 7 28 12 14 25 3 2 15 23 19 30 1 25 2 26 5 10 25 7 12 302 364 192 Melee 12 | . . . . . 5 2 3 . . . . . . . . . . . . . . . . 2 . . . . Guns 54 | . 16 6 . . . . 21 11 . . . . . . . . . . . . . . . . . . . . Cannons 709 | . . . . 1 . . . 1 14 25 3 2 15 23 3 29 1 17 2 25 5 10 25 . 12 179 165 152 AOE 224 | . . 1 . . . . 3 . . . . . . . 3 . . 8 . 1 . . . 5 . 110 53 40 Classes Destroyed 33 | 2 6 . . . 3 1 . 5 2 2 . . 1 . . . . . . . . . . . 1 9 . 1 Worker 35 | . 1 . . . 2 1 . 1 . 1 . . 1 . 4 . . . . . . . . 1 7 3 7 6 Builder 31 | . . . . . . 1 . 4 . 2 . . 1 . 5 . . . . . 1 . . 1 . 8 8 . Tunneler 6 | 3 . 1 . 1 1 . . . . . . . . . . . . . . . . . . . . . . . Hauler 16 | . 2 . . . 2 2 . 3 . . . . . . . . . . . . 1 . . . 1 . 5 . Recycler 36 | 1 2 . . . 4 2 . 12 . 3 . . . . 1 . . . . . . . . 1 4 . 4 2 Carrier 32 | . . . . . . . . . . . . . . . . . . . . . . . . . . 4 22 6 Mechanic 45 | . . . . . 1 . . . . . . . . . . . . . . . . . . . 1 18 16 9 Operator 11 | . 1 . . . . . . . . 1 . 2 1 . . . . . . . . . . 1 . . 1 4 Drone 7 | . . . . . . . . . . . . . . . . . . . . . . . . . . 7 . . Watcher 18 | . 1 . . . 1 1 . . . . 1 . . . . . . . . . . 1 . . . 1 5 7 Swarmer 67 | . 6 5 . . 3 . 10 . . . . . . 1 . 12 . 6 . . 2 8 . 4 . . 7 3 Cutter 15 | . . . . . . . . . . . . . . . . . . . . . . . . . . . 15 . Saboteur 44 | . . . . . . . . . . . . . 1 . . . . . . 1 . . . . . 14 19 9 Grunt 399 | . 10 2 . 1 2 2 9 . 7 14 . . 5 8 15 9 . 8 . 4 1 . 14 2 . 111 112 63 Brawler 51 | . . . . . . . . . . 1 . . 1 . . . . 1 . . . . 2 . . 18 18 10 Duelist 65 | . . . . . . . . 2 . 2 . . . 3 . 2 . . . . . . . . . 22 19 15 Protector 46 | . . . . . . . . 1 1 . . . . . . . . . . . . . . . . 8 22 14 Researcher 9 | . . . . . . . . . . . . . . . . . . . . . . . . . . 9 . . Sentry 87 | . . . . . 3 5 7 4 3 5 . 2 1 7 . 1 1 3 . 4 1 . 3 . . 14 19 4 Demolisher 2 | . . . . . . . . . . . . . . . . . . . . . . . . . . . . 2 Specialist 26 | . . . . . . . . . 1 . . . 3 . 2 2 . . . 6 . 1 3 . . 3 5 . Hunter 60 | . . . . . 1 . 2 . 2 1 . . 2 . . 1 . 1 . 2 . . . . . 20 18 10 Programmer 157 | . . . . . . . . 3 . . . . 1 4 1 3 . 6 2 7 . 1 2 1 11 34 53 28 Heavy 3 | . . . . . . . . . 1 . . . . . 1 . . . . . . . . . . . 1 . Behemoth 7 | . . . . . . . . . . 1 . . 1 . . . . . . 1 1 . 1 . . . 2 . Cetus Guard 3 | . . . . . . . . . . . 3 . . . . . . . . . . . . . . . . . M Guard 2 | . . . . . . . . . . . . . . . . . . . . . . . . . . . . 2 Hotshot 7 | . . . . . . . . . . . . . . . . . . . . . . . . . . 7 . . Decapitator 13 | . . . . . . . . . . . . . . . . . . . . . . . . . . 13 . . Immortal 7 | . . . . . . . . . . . . . . . . . . . . . . . . . . 7 . . Overlord 1 | . . . . . . . . . . . . . . . . . . . . . . . . . . 1 . . Combat Programmer 2 | . . . . . . . . . . . . . . . . . . . . . . . . . . . . 2 Investigator 6 | . . . . . . . . . . . . . . . . . . . . . . . . . . 2 2 2 Striker 42 | . . . . . . . . . . . . . . . . . . . . . . . . . . 3 24 15 Executioner 47 | . . . . . . . . . . . . . . . . . . . . . . . . . . 4 30 13 Alpha 7 2 | . . . . . . . . . . . . . . . . . . . . . . . . . . 2 . . Fortress 1 | . . . . . . . . . . . . . . . . . . . . . . . . . 1 . . . V-Series 13 | . . . . . . . . . . . . . . . . . . . . . . . . . . 13 . . Scientist 1 | . . . . . . . . 1 . . . . . . . . . . . . . . . . . . . . Scrapper 2 | . . . . . . . . 2 . . . . . . . . . . . . . . . . . . . . Tinkerer 1 | . . . . . . . . . . . . . . . . . . . . . . . . . . 1 . . Thug 3 | . . . . . . . . 1 . 1 . 1 . . . . . . . . . . . . . . . . Savage 2 | . . . . . . . . . . 1 . 1 . . . . . . . . . . . . . . . . Infiltrator 2 | . . . . . . . . . . . . . . . . . . . . 2 . . . . . . . . Best Kill Streak 77 | 3 5 3 . 1 4 3 8 8 4 4 2 2 8 5 28 5 1 14 2 6 1 4 7 8 8 71 77 60 Combat Bots Only 61 | . 4 3 . 1 3 2 8 2 4 4 2 1 7 5 18 5 1 14 2 6 1 4 7 6 3 61 59 51 Max Kills in Single Turn 15 | 1 2 2 . 1 1 1 1 2 1 2 1 1 2 2 4 2 1 5 1 1 1 1 1 3 1 15 6 8 Gunslinging . | . . . . . . . . . . . . . . . . . . . . . . . . . . . . . Exploded 13 | . . 1 . . . . 1 . . . . . . . 1 . . 5 . 1 . . . 2 . 13 6 8 Melee 1 | . . . . . 1 1 1 . . . . . . . . . . . . . . . . 1 . . . . Uniques/NPCs Destroyed 4 | . . . . . . . . . . . 1 . . . . . . . . . . . . . . 1 . 2 A7 (-6/Cetus) Superfortress (-2/Protoforge) MAIN.C Shell (-1/Command) MAIN.C (-1/Command) Combat | -11 -10 -10 -10 -9 -8 -8 -8 -8 -6 -6 -6 -6 -6 -6 -5 -5 -5 -5 -4 -4 -3 -3 -3 -2 -2 -2 -1 -1 -------- Run | Yrd Mat Min Exi Min Mat Sto Gar Rec Fac Ext Cet Arc Hub Gar Fac Gar Fac Gar Fac Gar Res Tes Gar Res Qua Frg Acc Com Hostile Shots Fired 5425 | . 59 12 . 7 33 22 229 33 144 120 30 15 113 266 95 96 8 119 39 193 66 256 149 113 87 1161 1437 523 Missed 1852 | . 13 3 . 4 5 5 54 1 53 43 9 5 30 86 26 28 4 36 8 60 29 126 57 57 26 434 428 222 Intercepted 9 | . . . . . . . . . . . . . . . . . . . . . . . . . . . . 9 Hits 3573 | . 46 9 . 3 28 17 175 32 91 77 21 10 83 180 69 68 4 83 31 133 37 130 92 56 61 727 1009 301 Melee 111 | . . . . . . . . 3 . 1 . . . 8 1 1 . . . . . . . . . 30 59 8 Projectile 3462 | . 46 9 . 3 28 17 175 29 91 76 21 10 83 172 68 67 4 83 31 133 37 130 92 56 61 697 950 293 AOE 26 | . . . . . . . . . 1 . . . . . . . . 1 . . . . . . . 13 6 5 Critical Strikes 172 | . 1 . . . 2 1 1 1 2 4 4 2 1 6 2 1 . 1 1 7 2 6 2 2 4 49 48 22 Actively Blocked 33 | . . . . . . . . . . . . . . . . . . . . . . 6 . . . 13 14 . Part Disruptions 5 | . . . . . . . . . . . . . 1 . . . . . . . . . . . 1 . . 3 Damage Taken 46975 | . 575 131 . 19 382 297 2110 609 1260 868 470 295 1359 2167 1398 1201 95 1757 1162 2554 916 1348 731 770 1187 11684 7001 4629 Core 3726 | . 109 37 . 6 44 33 388 59 150 92 118 . 100 183 140 42 . 163 74 148 71 55 39 75 34 885 477 204 Absorbed by Shields 21701 | . . . . . . . . . 77 379 103 . . . . . . . . . 62 860 771 800 463 7688 6500 3998 Redirected to Shielding 19 | . . 7 . . . . 12 . . . . . . . . . . . . . . . . . . . . . Ignored by Resistances 19754 | . . . . . . . . . . . . . . . . . . . . . . . . . . 3533 15828 393 Regen/Repaired (Parts) 34944 | . 97 . . . . . . 159 510 700 242 510 730 2812 199 1809 . 2400 380 2534 1121 311 1660 280 343 9648 6800 1699 Core Remaining (%) 52 | 100 . . . 39 . . . 4 . . . . . 24 . . . 65 . 80 . . 87 . . 17 . 57 Volleys Fired 2809 | 7 61 14 . 7 2 . 92 54 53 97 35 24 46 94 21 96 5 127 13 119 40 61 88 27 145 550 516 415 Largest 4 | 2 2 2 . 2 2 . 4 4 1 1 1 1 2 1 1 2 1 2 1 1 1 1 1 1 1 2 2 1 Hottest 605 | 60 80 80 . 105 105 . 250 112 156 110 110 255 283 255 250 201 201 229 201 201 94 94 94 588 251 605 585 225 Shots Fired 3187 | 14 125 28 . 14 3 . 243 191 53 97 35 23 47 94 21 97 5 132 13 119 40 61 88 27 144 547 512 414 Gun 633 | 14 125 28 . 7 2 . 236 185 . . . . 1 . . 1 . 32 . . . . . 1 . 1 . . Cannon 2213 | . . . . 7 1 . 3 6 53 76 35 23 44 82 14 96 5 77 13 90 36 43 86 5 132 485 406 395 Launcher 201 | . . . . . . . . . . . . . . . . . . 7 . 2 . . . 10 . 57 106 19 Special 140 | . . . . . . . 4 . . 21 . . 2 12 7 . . 16 . 27 4 18 2 11 12 4 . . Kinetic 1580 | 7 46 . . 7 1 . 236 191 17 76 5 23 45 62 1 37 . 37 . 57 31 43 62 . 47 304 83 162 Thermal 795 | 7 46 . . 7 2 . 7 . 36 . 30 . . 20 13 55 5 44 13 33 5 . 24 5 85 81 44 233 Explosive 96 | . . . . . . . . . . . . . . . . . . 7 . 2 . . . 10 . 57 1 19 Electromagnetic 487 | . 33 28 . . . . . . . . . . . . . 5 . 28 . . . . . 1 . 8 384 . Entropic 93 | . . . . . . . . . . . . . . . . . . . . . . . . . . 93 . . Robot Hit Streak 57 | 6 9 10 . 3 1 . 41 8 9 16 8 9 6 8 10 22 3 13 16 12 8 4 7 4 52 57 50 37 Robot Miss Streak 8 | 3 4 1 . 4 1 . 8 4 4 4 3 2 4 4 5 4 2 3 1 8 5 3 3 3 2 4 4 2 Penetration Max 2 | . . . . . . . . 1 . . . . 1 1 . . . . . . . . . . . 2 2 2 Secondary Targets 4 | . 1 . . . . . 3 . . . . . . . . . . . . . . . . . . . . . Max Gunslinging Chain 1 | . 1 . . . . . 1 . . . . . . . . . . . . . . . . . . . . . Shots Hit Robots 2284 | 7 73 18 . 4 45 26 192 90 33 92 32 20 26 57 17 68 3 78 5 69 24 27 50 17 96 363 397 355 Core Hits 1670 | 6 39 9 . 2 11 5 74 44 13 52 13 8 16 24 53 61 1 45 1 28 6 8 19 19 31 406 425 251 Critical Kills 174 | . . . . . 1 1 . 2 . . . . 4 1 . . . . . . . . . . . 27 115 23 Critical Parts Destroyed 285 | . . . . . 4 3 2 1 . . . . 3 . . . . . . . . . . . . 34 214 24 Critical Strikes 500 | . 2 . . . 5 5 3 4 . . . . 7 1 . . . . . . . 1 2 . . 74 346 50 Meltdown 6 | . . . . . . . . . . . . . . . . . . . . . . . . . . 6 . . Destroy 479 | . . . . . . . 3 4 . . . . 7 1 . . . . . . . . . . . 68 346 50 Blast 3 | . . . . . . . . . . . . . . . . . . . . . . 1 2 . . . . . Corrupt 2 | . 2 . . . . . . . . . . . . . . . . . . . . . . . . . . . Smash 10 | . . . . . 5 5 . . . . . . . . . . . . . . . . . . . . . . Melee Attacks 186 | . . . . . 56 39 86 . . . . . . . . . . . . . . . . 5 . . . . Impact 181 | . . . . . 56 39 86 . . . . . . . . . . . . . . . . . . . . . Slashing . | . . . . . . . . . . . . . . . . . . . . . . . . . . . . . Piercing 5 | . . . . . . . . . . . . . . . . . . . . . . . . 5 . . . . Sneak Attacks 19 | . . . . . 12 7 . . . . . . . . . . . . . . . . . . . . . . Combat Hostiles . | . . . . . . . . . . . . . . . . . . . . . . . . . . . . . Follow-up Attacks 30 | . . . . . 15 10 5 . . . . . . . . . . . . . . . . . . . . . Damage Inflicted 364628 | 80 862 323 . 75 2369 1291 3310 2191 3440 5798 2208 1480 2399 3664 1966 5220 498 7961 703 8584 4270 2702 9463 1569 8554 125467 86681 71500 Guns 6438 | 80 806 198 . 42 41 . 2452 2140 . . . . . . . . . 679 . . . . . . . . . . Cannons 273592 | . . . . 33 . . 19 24 3411 5752 2208 1480 2386 3658 426 5220 498 5573 703 8286 4129 2702 9463 . 8554 90425 60044 58598 Explosions 79636 | . 28 125 . . . . 177 . 29 . . . . . 1524 . . 1709 . 298 . . . 1440 . 35037 26637 12632 Melee 4367 | . . . . . 2328 1291 619 . . . . . . . . . . . . . . . . 129 . . . . Ramming 552 | . 28 . . . . . . 27 . 46 . . 13 6 16 . . . . . 141 . . . . 5 . 270 Kinetic 140251 | 27 194 . . 33 . . 2452 2164 743 5752 444 1480 2386 2690 144 2529 . 1508 . 7028 3747 2702 7902 . 6496 57647 12316 19867 Thermal 79752 | 53 379 125 . 42 41 . 239 . 2668 . 1764 . . 968 1735 2476 498 4065 703 1258 382 . 1561 . 2058 12056 7950 38731 Explosive 51830 | . . . . . . . . . . . . . . . 71 . . 1709 . 298 . . . 1440 . 35037 643 12632 Electromagnetic 68417 | . 261 198 . . . . . . 29 . . . . . . 215 . 679 . . . . . . . 1263 65772 . Impact 4238 | . . . . . 2328 1291 619 . . . . . . . . . . . . . . . . . . . . . Slashing . | . . . . . . . . . . . . . . . . . . . . . . . . . . . . . Piercing 129 | . . . . . . . . . . . . . . . . . . . . . . . . 129 . . . . Entropic 19459 | . . . . . . . . . . . . . . . . . . . . . . . . . . 19459 . . Highest Corruption 29 | . 1 1 1 1 7 7 13 14 1 8 8 8 1 2 . 2 2 5 1 7 2 4 4 3 13 29 10 7 Average Corruption 8 | . 1 1 1 1 4 7 11 13 1 2 8 6 1 1 . 1 2 3 1 3 2 2 4 2 9 20 4 6 Corruption Purged 25 | . . . . . . . . . . . . 8 . . . . . . . . . . . . . . 10 7 Corruption Blocked . | . . . . . . . . . . . . . . . . . . . . . . . . . . . . . Effects 862 | . 5 7 3 2 10 31 65 105 3 22 14 7 . 12 . 13 1 43 5 43 1 10 26 5 37 266 55 71 Message Errors 192 | . 1 2 . . 3 7 13 24 1 9 3 . . 2 . 3 . 6 1 21 1 . 4 . 11 57 10 13 Matter Fused 207 | . . 1 1 2 6 4 9 24 . 7 4 3 . 2 . 8 1 16 . 6 . 5 9 2 7 58 15 17 Heat Flow Errors 107 | . . 2 1 . . 4 13 7 1 1 1 1 . 3 . . . 8 1 4 . 2 1 . 4 39 8 6 Energy Discharges 99 | . 1 . . . . 6 9 13 . 3 1 . . 3 . 1 . 7 1 5 . 1 2 1 4 30 2 9 Parts Rejected 4 | . . . . . . . . . . . . . . . . . . . . . . . . . . 2 2 . Parts Fused 8 | . . . . . . . 1 . . . . . . . . . . . 1 1 . . 1 . . 3 . 1 Data Loss (minor) 114 | . . . 1 . 1 4 9 16 1 2 4 . . 1 . . . 3 1 5 . 2 6 1 6 26 9 16 Data Loss (major) 40 | . . 2 . . . 3 3 5 . . 1 1 . 1 . . . 1 . 1 . . 1 1 1 13 1 5 Misfires 28 | . 3 . . . . . 2 5 . . . . . . . . . 2 . . . . . . . 14 1 1 Alerts 19 | . . . . . . 3 2 5 . . . 1 . . . 1 . . . . . . 2 . 1 2 1 1 Misdirections 6 | . . . . . . . . . . . . . . . . . . . . . . . . . 2 4 . . Weapon Failures 38 | . . . . . . . 4 6 . . . 1 . . . . . . . . . . . . 1 18 6 2 Overload Shots . | . . . . . . . . . . . . . . . . . . . . . . . . . . . . . Overflow Damage 54605 | . . 4 . . 574 430 73 . 514 152 7 99 314 238 30 585 74 1405 192 1640 436 666 1411 80 473 22239 12419 10550 Projectiles 49726 | . . . . . . 4 . . 514 152 7 99 314 238 17 585 74 1372 192 1635 413 666 1411 . 473 20046 11681 9833 Explosions 3761 | . . 4 . . . . 4 . . . . . . . 13 . . 33 . 5 . . . 80 . 2193 738 691 Melee 1118 | . . . . . 574 426 69 . . . . . . . . . . . . . 23 . . . . . . 26 Knockbacks 330 | . . . . 1 4 5 1 . . 40 5 7 7 13 1 5 . 6 . 11 1 4 5 . . 116 28 70 Impact 11 | . . . . . 3 4 1 . . . . . . . . . . . . . 1 . . . . . . 2 Kinetic 289 | . . . . 1 . . . . . 36 5 7 7 13 1 3 . 6 . 10 . 4 5 . . 107 24 60 Secondary 30 | . . . . . 1 1 . . . 4 . . . . . 2 . . . 1 . . . . . 9 4 8 Self-Inflicted Damage 3345 | . 52 31 . . . . 15 . 29 . . . . . 23 . . 72 . . . . . 119 . 2567 168 269 Shots 47 | . 1 1 . . . . 1 . 1 . . . . . 4 . . 2 . . . . . 2 . 29 3 3 Rammed 16 | . 7 . . . . . . 1 . 2 . . . . . . . . . . 4 . . . . 1 . 1 Targets Rammed 30 | . 8 . . . . . . 2 . 4 . . 1 1 3 . . . . . 4 . . . . 1 . 6 Kicked 9 | . . . . . . . . . . . . . . 1 3 . . . . . . . . . . . . 5 Crushed 5 | . 1 . . . . . . 1 . 2 . . 1 . . . . . . . . . . . . . . . Highest Temperature 1331 | 20 156 264 153 135 33 271 413 331 327 358 351 313 306 213 403 321 279 304 321 427 199 394 389 410 280 577 1331 187 Average Temperature 140 | 15 42 50 81 53 15 123 111 83 108 102 117 121 140 132 136 119 145 129 148 144 108 122 108 116 90 156 180 130 Received Heat Transfer 7450 | . 240 18 . . 117 126 594 196 272 281 . 54 157 313 292 207 9 183 87 481 113 278 93 69 63 1949 598 660 Thermoelectric Energy+ 193005 | . . . . . . . . . . . . . . . . . . . . . . . . . . 44987 130660 17358 Effects 125 | . . 1 . . . . 5 . . 2 . 1 1 6 3 2 . 5 1 4 . . 2 4 . 32 56 . Shutdowns 10 | . . . . . . . 1 . . . . . . . . . . . . . . . 1 1 . 6 1 . Energy Bleed 37 | . . 1 . . . . 3 . . . . 1 . 3 1 . . 2 . 1 . . 1 . . 6 18 . Interference 59 | . . . . . . . . . . 1 . . 1 3 2 2 . 3 1 3 . . . 2 . 12 29 . Matter Decay 4 | . . . . . . . . . . . . . . . . . . . . . . . . 1 . 3 . . Short Circuit 3 | . . . . . . . 1 . . . . . . . . . . . . . . . . . . 2 . . Damage (minor) 5 | . . . . . . . . . . 1 . . . . . . . . . . . . . . . 3 1 . Damage (major) 7 | . . . . . . . . . . . . . . . . . . . . . . . . . . . 7 . Siege Activations . | . . . . . . . . . . . . . . . . . . . . . . . . . . . . . Martial Activations . | . . . . . . . . . . . . . . . . . . . . . . . . . . . . . Shielding Activations . | . . . . . . . . . . . . . . . . . . . . . . . . . . . . . Robots Disrupted 1 | . . . . . . . . . . . . . . . . . . . . . . . . . . 1 . . Combat Hostiles 1 | . . . . . . . . . . . . . . . . . . . . . . . . . . 1 . . Robots Corrupted 192 | . . . . . 8 9 1 . . . . . . . . 2 . 6 . . 1 . . . . 6 159 . Combat Hostiles 160 | . . . . . 4 5 1 . . . . . . . . 1 . . . . . . . . . 5 144 . Parts Fried 542 | . . . . . 9 11 . . . . 1 . . . . 6 . 12 . . 1 . . . . 7 495 . Impact Corruptions 54 | . . . . . 21 15 5 . . . . . . . . 1 . . . 1 1 . . . . 9 . 1 Robots Melted 22 | . . . . . . . . . . . . . . . 14 . . . . . . . . . . 6 2 . Combat Hostiles 20 | . . . . . . . . . . . . . . . 13 . . . . . . . . . . 6 1 . Parts Melted 110 | . . . . . . 1 . 1 9 . . . . . 44 6 . . . 1 . . . . . 15 21 12 Heat Transferred 36079 | 125 850 150 . 74 74 . 788 . 2220 . 1050 . . 691 10080 3100 75 700 125 437 50 . 370 . 1591 2561 3786 7182 Parts Sabotaged 9 | . . . . . . . . . . . . . . . 1 . . . . . . . . . . 3 2 3 Parts Stolen . | . . . . . . . . . . . . . . . . . . . . . . . . . . . . . Parts Stripped . | . . . . . . . . . . . . . . . . . . . . . . . . . . . . . Power Chain Reactions 27 | . 1 1 . . . . . . . . . . . . . . . . . . . . . . . 2 23 . Alert | -11 -10 -10 -10 -9 -8 -8 -8 -8 -6 -6 -6 -6 -6 -6 -5 -5 -5 -5 -4 -4 -3 -3 -3 -2 -2 -2 -1 -1 ------- Run | Yrd Mat Min Exi Min Mat Sto Gar Rec Fac Ext Cet Arc Hub Gar Fac Gar Fac Gar Fac Gar Res Tes Gar Res Qua Frg Acc Com Maximum Alert Level 5 | . . . . . 1 2 4 2 2 3 2 2 4 5 4 5 3 5 4 5 4 2 4 3 2 5 5 5 Low Security (%) 13 | 100 100 100 . 100 67 50 . . . 24 . 55 12 . . . . . . . . . . . 15 . . . Level 1 9 | . . . . . 32 6 14 . 52 34 . 36 11 . . . . . . . . 37 5 4 45 12 . . Level 2 15 | . . . . . . 43 14 100 47 20 100 7 34 . . . . 13 . . . 62 9 56 39 5 . . Level 3 14 | . . . . . . . 37 . . 21 . . 7 32 88 32 100 1 . 35 92 . 81 39 . 12 . . Level 4 9 | . . . . . . . 33 . . . . . 35 59 11 35 . 4 100 37 7 . 3 . . 6 . . Level 5 13 | . . . . . . . . . . . . . . 7 . 31 . 80 . 27 . . . . . 43 . 6 High Security 22 | . . . . . . . . . . . . . . . . . . . . . . . . . . 19 99 93 Max Security . | . . . . . . . . . . . . . . . . . . . . . . . . . . . . . Sterilizations 1 | . . . . . . . . . . . . . . . . . . . . . . . . . . . 1 . Peak Influence 16284 | 15 158 115 . 95 262 528 1380 682 581 1033 697 428 1242 1737 1460 2036 1068 2303 1238 1939 1114 591 1113 831 465 8392 16284 15940 Initial 10421 | . 3 21 . . 30 53 293 621 374 272 571 237 . 825 911 1016 1068 518 1208 812 1090 498 233 625 342 216 5035 10421 Average 3737 | 2 73 41 . 13 165 263 888 565 414 426 618 177 699 1289 933 1443 931 1763 1198 1286 1044 420 878 647 335 3046 12725 14289 Influence Increases 44322 | 20 531 291 . 164 591 884 1227 571 807 1430 341 245 1621 1022 831 1020 53 1935 62 1407 288 648 920 633 656 9116 11339 5669 Destroy 0b10 Robot/C 25480 | . 320 180 . 100 280 380 600 200 340 720 160 80 640 540 500 600 20 820 40 620 100 200 540 140 240 6080 7320 3720 Destroy 0b10 Robot/NC 1445 | 20 35 5 . 5 60 40 15 120 5 60 10 10 40 5 50 30 . 50 . . 10 5 . 20 65 230 340 215 Destroy Leader 3614 | . 76 30 . 20 86 138 30 . 92 96 . . 174 10 90 30 10 60 10 10 32 32 40 10 42 682 1210 604 Allied During Kill 2190 | . . 28 . 39 77 263 10 14 33 407 131 90 540 15 20 . . 249 . 231 . 9 24 . . 10 . . Successful Hack 640 | . 7 . . . 43 18 14 30 56 7 . . 3 28 23 14 4 28 . . 60 49 28 51 99 27 51 . Select Force Hacks 120 | . 30 . . . . . . 90 . . . . . . . . . . . . . . . . . . . . Disable Machine 1560 | . 30 15 . . 15 45 60 75 60 30 15 45 150 . 75 . . 30 . . . 105 15 15 45 435 240 60 Anti-Garrison Action 2050 | . . . . . . . 300 . . . . . . 200 . 200 . 350 . 350 . . 150 . . . 450 50 Destroy Structure 5063 | . 3 18 . . . . 108 12 11 65 25 20 59 89 58 116 4 288 12 166 26 38 108 307 105 1502 1263 660 Advance Influence 150 | . . . . . . . . . 150 . . . . . . . . . . . . . . . . . . . Partial Spotted 180 | . . . . . 30 . 15 . 15 . . . . . . . . . . . 15 . . 15 30 15 . 45 Lose Combat Pursuer 1830 | . 30 15 . . . . 75 30 45 45 . . 15 135 15 30 15 60 . 30 45 210 15 75 30 135 465 315 Influence Decreases 28362 | 15 480 347 . 85 541 562 298 1417 784 966 768 839 442 464 1116 436 1348 373 1205 628 1341 1223 118 1136 880 1110 3447 5993 Entered New Map 18192 | . 2 35 . . 49 76 158 759 310 285 450 357 . 354 826 436 968 223 1095 348 849 388 78 488 268 170 3357 5863 Time Decay 6795 | 15 468 282 . 85 422 386 . 658 374 571 238 482 292 . 230 . 80 . 110 . 342 230 . 198 452 770 10 100 Lost Part 330 | . 10 10 . . 10 . 80 . 10 10 . . 10 10 . . . . . . . 10 . . 10 50 80 30 Lost Ally 1470 | . . 20 . . 60 100 60 . 90 100 80 . 140 100 60 . . 150 . 280 . 70 40 . . 120 . . Purge Threat 1575 | . . . . . . . . . . . . . . . . . 300 . . . 150 525 . 450 150 . . . Squads Dispatched 257 | . 5 . . . 2 3 . . 4 4 . . 15 . 8 . . . 1 . 6 4 . 2 4 79 82 38 Investigation 15 | . 3 . . . 1 . . . 2 1 . . 3 . 1 . . . . . 4 . . . . . . . Extermination 16 | . . . . . . . . . . . . . 2 . 1 . . . . . . 1 . 1 3 8 . . Reinforcement 31 | . 2 . . . . 1 . . 2 2 . . 6 . 4 . . . 1 . 2 3 . 1 . 3 2 2 Assault 188 | . . . . . . . . . . 1 . . 1 . 1 . . . . . . . . . 1 68 80 36 Garrison 7 | . . . . . 1 2 . . . . . . 3 . 1 . . . . . . . . . . . . . Intercept . | . . . . . . . . . . . . . . . . . . . . . . . . . . . . . Searches Triggered . | . . . . . . . . . . . . . . . . . . . . . . . . . . . . . Unchained Authorized 1 | . . . . . . . . . . . . . . . . . . . . . . . . 1 . . . . Construction Impeded 7 | . . . . . . . . . . 1 . . 1 . 1 . . . . . . . . . . 2 2 . Haulers Reinforced 2 | . . . . . . . . . . . . . . . . . . . . . 2 . . . . . . . Active Scanning Responses . | . . . . . . . . . . . . . . . . . . . . . . . . . . . . . Cargo Convoy Interrupts . | . . . . . . . . . . . . . . . . . . . . . . . . . . . . . Stealth | -11 -10 -10 -10 -9 -8 -8 -8 -8 -6 -6 -6 -6 -6 -6 -5 -5 -5 -5 -4 -4 -3 -3 -3 -2 -2 -2 -1 -1 --------- Run | Yrd Mat Min Exi Min Mat Sto Gar Rec Fac Ext Cet Arc Hub Gar Fac Gar Fac Gar Fac Gar Res Tes Gar Res Qua Frg Acc Com Distress Signals 47 | . 2 . . . 4 4 . . . 1 2 . 4 . . . . . . . 4 . . 1 . 1 10 14 Communications Jammed 11 | . . . . . . . . . . . . . . . . . . . . . 1 . . 3 4 3 . . Distress Signals 11 | . . . . . . . . . . . . . . . . . . . . . 1 . . 3 4 3 . . Times Spotted 1685 | . 29 9 . 6 24 21 41 13 22 43 10 11 31 41 31 34 1 49 7 35 16 35 25 25 26 395 453 252 Peak Tracking Total 48 | . 4 3 . 3 5 5 8 4 3 5 5 2 6 7 9 5 1 14 6 6 4 11 5 10 5 48 26 19 Tactical Retreats 98 | . 1 1 . . . . 4 1 2 2 . . 1 6 1 1 1 2 . 2 2 10 1 7 2 7 24 20 ECM-based Alert Blocks 8 | . . . . . . . . . . . . . . . . . . . . . . . . 8 . . . . Traps | -11 -10 -10 -10 -9 -8 -8 -8 -8 -6 -6 -6 -6 -6 -6 -5 -5 -5 -5 -4 -4 -3 -3 -3 -2 -2 -2 -1 -1 ------- Run | Yrd Mat Min Exi Min Mat Sto Gar Rec Fac Ext Cet Arc Hub Gar Fac Gar Fac Gar Fac Gar Res Tes Gar Res Qua Frg Acc Com Traps Triggered 72 | . 5 . . . 5 . 1 . 1 6 . . . 6 1 4 . 2 . 10 2 1 6 4 . 10 6 2 Indirectly 1 | . . . . . . . . . . . . . . . . . . . . . . . . . . . 1 . Trap Hack Attempts . | . . . . . . . . . . . . . . . . . . . . . . . . . . . . . Triggered . | . . . . . . . . . . . . . . . . . . . . . . . . . . . . . Disarmed . | . . . . . . . . . . . . . . . . . . . . . . . . . . . . . Reprogrammed . | . . . . . . . . . . . . . . . . . . . . . . . . . . . . . Reused . | . . . . . . . . . . . . . . . . . . . . . . . . . . . . . Traps Extracted . | . . . . . . . . . . . . . . . . . . . . . . . . . . . . . Installed . | . . . . . . . . . . . . . . . . . . . . . . . . . . . . . Triggered . | . . . . . . . . . . . . . . . . . . . . . . . . . . . . . Machines | -11 -10 -10 -10 -9 -8 -8 -8 -8 -6 -6 -6 -6 -6 -6 -5 -5 -5 -5 -4 -4 -3 -3 -3 -2 -2 -2 -1 -1 ---------- Run | Yrd Mat Min Exi Min Mat Sto Gar Rec Fac Ext Cet Arc Hub Gar Fac Gar Fac Gar Fac Gar Res Tes Gar Res Qua Frg Acc Com Machines Disabled 159 | . 2 2 . . 1 3 6 7 4 4 1 3 10 2 5 2 . 4 . 4 . 8 2 2 3 53 25 6 Max in Single Turn 4 | . 1 1 . . . 1 2 2 1 1 1 1 2 1 4 1 . 1 . 1 . 1 1 1 1 3 2 2 Garrison Access 10 | . . . . . . . . . . . . . . . . . . . . . 1 . . 2 1 1 5 . Garrison Relay 10 | . . . . . . . 1 . . . . . . 2 . 2 . 1 . 3 . . 1 . . . . . Phase Generator 1 | . . . . . . . . . . . . . . . . . . . . . . . . . . . . 1 Network Hub 3 | . . . . . . . . . . . . . 3 . . . . . . . . . . . . . . . Energy Cycler 2 | . . . . . . . . . . . . . . . . . . . . . . . . . . . 2 . Machines Repaired . | . . . . . . . . . . . . . . . . . . . . . . . . . . . . . Machines Dismantled 4 | . . . . . . 1 . . . 2 1 . . . . . . . . . . . . . . . . . Machines Sabotaged . | . . . . . . . . . . . . . . . . . . . . . . . . . . . . . Overloaded Fab Kills . | . . . . . . . . . . . . . . . . . . . . . . . . . . . . . Hacking | -11 -10 -10 -10 -9 -8 -8 -8 -8 -6 -6 -6 -6 -6 -6 -5 -5 -5 -5 -4 -4 -3 -3 -3 -2 -2 -2 -1 -1 --------- Run | Yrd Mat Min Exi Min Mat Sto Gar Rec Fac Ext Cet Arc Hub Gar Fac Gar Fac Gar Fac Gar Res Tes Gar Res Qua Frg Acc Com Machines Accessed 122 | . 7 . . . 8 9 4 9 6 10 1 . 4 4 5 2 4 2 2 1 8 8 4 9 11 3 1 . Terminals 89 | . 5 . . . 6 8 4 5 5 10 1 . 3 4 2 2 3 2 1 1 5 6 4 3 7 1 1 . Fabricators 3 | . . . . . . . . . 1 . . . . . . . . . . . 1 . . 1 . . . . Repair Stations 1 | . 1 . . . . . . . . . . . . . . . . . . . . . . . . . . . Recycling Units 8 | . 1 . . . . . . 3 . . . . . . 1 . . . . . 1 . . 2 . . . . Scanalyzers 9 | . . . . . 2 . . . . . . . . . 1 . . . . . . 1 . 1 3 1 . . Garrison Access 11 | . . . . . . 1 . . . . . . 1 . 1 . 1 . 1 . 1 1 . 2 1 1 . . Total Hacks 330 | . 19 . . . 21 26 6 32 18 16 1 . 8 11 24 4 16 8 2 1 25 25 11 25 23 5 3 . Successful 133 | . 8 . . . 14 15 2 16 11 4 . . 5 3 7 2 6 2 1 1 7 6 2 8 7 4 2 . Failed 196 | . 11 . . . 6 11 4 16 7 12 1 . 3 8 17 2 10 6 1 . 18 19 9 17 16 1 1 . Catastrophic 53 | . 1 . . . 1 2 2 . . 4 1 . . 2 3 1 4 1 1 . 6 6 3 9 5 . 1 . Database Lockouts 1 | . . . . . 1 . . . . . . . . . . . . . . . . . . . . . . . Manual 152 | . 16 . 1 . 15 17 . 23 11 6 1 . 7 . 6 . 4 . . . 7 13 . 12 10 2 1 . Terminals 250 | . 15 . . . 17 25 6 20 14 16 1 . 7 11 14 4 15 8 1 1 14 18 11 14 14 1 3 . Fabricators 13 | . . . . . . . . . 4 . . . . . . . . . . . 6 . . 3 . . . . Repair Stations 3 | . 3 . . . . . . . . . . . . . . . . . . . . . . . . . . . Recycling Units 22 | . 1 . . . . . . 10 . . . . . . 3 . . . . . 4 . . 4 . . . . Scanalyzers 26 | . . . . . 4 . . . . . . . . . 6 . . . . . . 6 . 1 7 2 . . Garrison Access 14 | . . . . . . 1 . . . . . . 1 . 1 . 1 . 1 . 1 1 . 3 2 2 . . Terminal Hacks 51 | . . . . . 3 6 2 5 2 4 . . 1 3 2 2 4 2 . 1 4 2 2 1 2 1 2 . Record 1 | . . . . . . 1 . . . . . . . . . . . . . . . . . . . . . . Part Schematic 5 | . . . . . 1 . . 2 1 . . . . . 1 . . . . . . . . . . . . . Prototype ID Bank 1 | . . . . . . . . . . . . . . . . . . . . . 1 . . . . . . . Open Door 9 | . . . . . . 1 1 . 1 4 . . . 1 . . . . . . . 1 . . . . . . Level Access Points 1 | . . . . . . . . . . . . . . . . . . . . . . . . . . . 1 . Branch Access Points 2 | . . . . . . . . . . . . . . . . . . . . . 1 . . 1 . . . . Emergency Access Points 6 | . . . . . . . 1 . . . . . . 1 . 1 . 1 . 1 . . 1 . . . . . Alert Level 1 | . . . . . . 1 . . . . . . . . . . . . . . . . . . . . . . Unreport Threat 5 | . . . . . . . . . . . . . . . . . 2 . . . 1 1 . . 1 . . . Locate Traps 2 | . . . . . . . . . . . . . . . 1 . 1 . . . . . . . . . . . Zone Layout 11 | . . . . . 2 3 . 1 . . . . 1 . . . 1 . . . 1 . . . 1 . 1 . Garrison Registry 2 | . . . . . . . . . . . . . . 1 . . . . . . . . 1 . . . . . Patrol Navigation 2 | . . . . . . . . . . . . . . . . 1 . 1 . . . . . . . . . . Proto ID Catalog 1 | . . . . . . . . . . . . . . . . . . . . . . . . . . 1 . . Release Object 2 | . . . . . . . . 2 . . . . . . . . . . . . . . . . . . . . Fabricator Hacks 4 | . . . . . . . . . 2 . . . . . . . . . . . 1 . . 1 . . . . Load Schematic 3 | . . . . . . . . . 1 . . . . . . . . . . . 1 . . 1 . . . . Build 1 | . . . . . . . . . 1 . . . . . . . . . . . . . . . . . . . Repair Station Hacks 2 | . 2 . . . . . . . . . . . . . . . . . . . . . . . . . . . Scan Component 1 | . 1 . . . . . . . . . . . . . . . . . . . . . . . . . . . Repair 1 | . 1 . . . . . . . . . . . . . . . . . . . . . . . . . . . Recycling Unit Hacks 3 | . . . . . . . . 1 . . . . . . . . . . . . . . . 2 . . . . Retrieve Components 3 | . . . . . . . . 1 . . . . . . . . . . . . . . . 2 . . . . Scanalyzer 12 | . . . . . 3 . . . . . . . . . 3 . . . . . . 2 . 1 3 . . . Insert Component 3 | . . . . . 1 . . . . . . . . . 1 . . . . . . . . . 1 . . . Analyze 1 | . . . . . . . . . . . . . . . 1 . . . . . . . . . . . . . Retrieve Study 8 | . . . . . 2 . . . . . . . . . 1 . . . . . . 2 . 1 2 . . . Garrison Access Hacks 14 | . . . . . . 1 . . . . . . 1 . 1 . 1 . 1 . 1 1 . 3 2 2 . . Unlock Access 6 | . . . . . . 1 . . . . . . 1 . 1 . 1 . 1 . . 1 . . . . . . Seal Access 5 | . . . . . . . . . . . . . . . . . . . . . 1 . . 2 1 1 . . Coupler Status 3 | . . . . . . . . . . . . . . . . . . . . . . . . 1 1 1 . . Unauthorized Hacks 47 | . 6 . . . 8 8 . 10 7 . . . 3 . 1 . 1 . . . 1 1 . . . 1 . . Terminals 41 | . 5 . . . 8 8 . 6 7 . . . 3 . 1 . 1 . . . 1 1 . . . . . . Track 4 | . . . . . . . . . . . . . 1 . 1 . 1 . . . . 1 . . . . . . Botnet 12 | . 1 . . . 3 3 . 2 3 . . . . . . . . . . . . . . . . . . . Operators 1 | . . . . . . . . . . . . . . . . . . . . . 1 . . . . . . . Skim 22 | . 4 . . . 5 5 . 4 4 . . . . . . . . . . . . . . . . . . . Sabotage 2 | . . . . . . . . . . . . . 2 . . . . . . . . . . . . . . . Fabricators . | . . . . . . . . . . . . . . . . . . . . . . . . . . . . . Repair Stations . | . . . . . . . . . . . . . . . . . . . . . . . . . . . . . Recycling Units 5 | . 1 . . . . . . 4 . . . . . . . . . . . . . . . . . . . . Mask 1 | . . . . . . . . 1 . . . . . . . . . . . . . . . . . . . . Tunnel 4 | . 1 . . . . . . 3 . . . . . . . . . . . . . . . . . . . . Scanalyzers 1 | . . . . . . . . . . . . . . . . . . . . . . . . . . 1 . . Researchers 1 | . . . . . . . . . . . . . . . . . . . . . . . . . . 1 . . Garrison Access . | . . . . . . . . . . . . . . . . . . . . . . . . . . . . . Data Cores Recovered 3 | . . . . . 1 . . . . . . . . . . . . . . . . . . 1 . . 1 . Used 2 | . . . . . . . . . . . . . . . . . . . . . . . . 1 . . 1 . Hacking Detections 90 | . 5 . . . 8 7 3 6 5 9 1 . 2 3 4 1 3 2 1 1 5 6 3 5 8 1 1 . Full Trace Events 6 | . . . . . . . 1 . 2 1 . . . . . . . . . . 2 . . . . . . . Feedback Events . | . . . . . . . . . . . . . . . . . . . . . . . . . . . . . Feedback Blocked . | . . . . . . . . . . . . . . . . . . . . . . . . . . . . . Robot Schematics Acquired 6 | . . . . . . . . . . . . . . . . . . . . . . 2 . . . 4 . . Robots Built . | . . . . . . . . . . . . . . . . . . . . . . . . . . . . . Authchips . | . . . . . . . . . . . . . . . . . . . . . . . . . . . . . Time . | . . . . . . . . . . . . . . . . . . . . . . . . . . . . . Total Robot Build Rating . | . . . . . . . . . . . . . . . . . . . . . . . . . . . . . Part Schematics Acquired 28 | . . . . . 1 . . 2 1 . . . . . 2 . . . . . . 5 . . . 17 . . Parts Built 1 | . . . . . . . . . 1 . . . . . . . . . . . . . . . . . . . Authchips . | . . . . . . . . . . . . . . . . . . . . . . . . . . . . . Time 25 | . . . . . . . . . 25 . . . . . . . . . . . . . . . . . . . Total Part Build Rating 1 | . . . . . . . . . 1 . . . . . . . . . . . . . . . . . . . Part Studies Acquired 8 | . . . . . 2 . . . . . . . . . 1 . . . . . . 2 . 1 2 . . . Parts Repaired 1 | . 1 . . . . . . . . . . . . . . . . . . . . . . . . . . . Time 26 | . 26 . . . . . . . . . . . . . . . . . . . . . . . . . . . Parts Recycled . | . . . . . . . . . . . . . . . . . . . . . . . . . . . . . Recycled Matter . | . . . . . . . . . . . . . . . . . . . . . . . . . . . . . Retrieved Matter . | . . . . . . . . . . . . . . . . . . . . . . . . . . . . . Retrieved Components 12 | . . . . . . . . 9 . . . . . . . . . . . . . . . 3 . . . . Parts Scanalyzed 1 | . . . . . . . . . . . . . . . 1 . . . . . . . . . . . . . Part Schematics Acquired 1 | . . . . . . . . . . . . . . . 1 . . . . . . . . . . . . . Parts Damaged . | . . . . . . . . . . . . . . . . . . . . . . . . . . . . . Bothacking | -11 -10 -10 -10 -9 -8 -8 -8 -8 -6 -6 -6 -6 -6 -6 -5 -5 -5 -5 -4 -4 -3 -3 -3 -2 -2 -2 -1 -1 ------------ Run | Yrd Mat Min Exi Min Mat Sto Gar Rec Fac Ext Cet Arc Hub Gar Fac Gar Fac Gar Fac Gar Res Tes Gar Res Qua Frg Acc Com Used RIF Installer 7 | . . . . . . . 1 . . . . . . 1 . 1 . 2 . 1 . . 1 . . . . . Coupler Efficiency 1 | . . . . . . . . . . . . . . 1 . . . . . . . . . . . . . . Hotswap 1 | . . . . . . . . . . . . . . . . 1 . . . . . . . . . . . . Signal Jammer 1 | . . . . . . . . . . . . . . . . . . 1 . . . . . . . . . . Zone Cloak 1 | . . . . . . . . . . . . . . . . . . . . 1 . . . . . . . . Watcher Feeds 1 | . . . . . . . . . . . . . . . . . . . . . . . 1 . . . . . Autoassimilate 1 | . . . . . . . . . . . . . . . . . . 1 . . . . . . . . . . Robots Hacked 46 | . . . . . . . . . . 2 . . 1 6 3 . . 4 . 11 4 7 . 3 3 2 . . Non-combat 12 | . . . . . . . . . . . . . 1 . . . . 1 . . 2 3 . 3 1 1 . . Combat 34 | . . . . . . . . . . 2 . . . 6 3 . . 3 . 11 2 4 . . 2 1 . . Autoassimilated 1 | . . . . . . . . . . . . . . . . . . . . 1 . . . . . . . . Robot Hacks Applied 59 | . . . . . . . . . . 2 . . 2 7 4 . . 4 . 10 4 10 . 7 7 2 . . parse_system 3 | . . . . . . . . . . 2 . . . . . . . . . . 1 . . . . . . . deconstruct_machine 2 | . . . . . . . . . . . . . 2 . . . . . . . . . . . . . . . drop_inventory 1 | . . . . . . . . . . . . . . . . . . . . . . . . 1 . . . . purge_threat 7 | . . . . . . . . . . . . . . . . . . . . . . 3 . 4 . . . . locate_traps 1 | . . . . . . . . . . . . . . . . . . . . . . 1 . . . . . . disarm_traps 1 | . . . . . . . . . . . . . . . . . . . . . . . . 1 . . . . map_route 5 | . . . . . . . . . . . . . . . . . . . . . 1 1 . . 2 1 . . disable_scanner 2 | . . . . . . . . . . . . . . . . . . . . . . 1 . . 1 . . . find_garrison 1 | . . . . . . . . . . . . . . . 1 . . . . . . . . . . . . . link_fov 1 | . . . . . . . . . . . . . . . . . . . . . . . . 1 . . . . amplify_resonance 4 | . . . . . . . . . . . . . . 1 . . . 1 . . 2 . . . . . . . disable_weapons 1 | . . . . . . . . . . . . . . . . . . . . . . . . . 1 . . . reboot_system 3 | . . . . . . . . . . . . . . . . . . . . . . . . . 3 . . . overwrite_iff 8 | . . . . . . . . . . . . . . 6 . . . . . 2 . . . . . . . . formatsys_low 5 | . . . . . . . . . . . . . . . . . . 1 . . . 3 . . . 1 . . formatsys_high 14 | . . . . . . . . . . . . . . . 3 . . 2 . 8 . 1 . . . . . . Relay Couplers Released 46 | . . . . . . . 5 . . . . . . 9 . 8 . 4 . 14 . . 5 . . . 1 . Machine Destruction 43 | . . . . . . . 5 . . . . . . 9 . 8 . 4 . 11 . . 5 . . . 1 . Programmers 3 | . . . . . . . . . . . . . . . . . . . . 3 . . . . . . . . Attached 17 | . . . . . . . . . . . . . 1 3 2 . . 3 . 3 1 . . 1 2 1 . . Fabnet Peak Effective % . | . . . . . . . . . . . . . . . . . . . . . . . . . . . . . Robots Rewired 26 | . . . . . . . 2 5 . 9 . . . . . . . 3 . 5 . . 2 . . . . . Allies Hacked 3 | . . . . . . . . . . . . . . . 1 . . . . 2 . . . . . . . . Hacks Repelled . | . . . . . . . . . . . . . . . . . . . . . . . . . . . . . Allies | -11 -10 -10 -10 -9 -8 -8 -8 -8 -6 -6 -6 -6 -6 -6 -5 -5 -5 -5 -4 -4 -3 -3 -3 -2 -2 -2 -1 -1 -------- Run | Yrd Mat Min Exi Min Mat Sto Gar Rec Fac Ext Cet Arc Hub Gar Fac Gar Fac Gar Fac Gar Res Tes Gar Res Qua Frg Acc Com Total Allies 90 | . . 3 . 3 . 10 2 5 . 18 5 . . 8 3 . . 8 . 18 . 4 2 . . 1 . . Largest Group 10 | . . 3 2 5 5 10 3 6 6 8 9 7 5 2 3 . . 6 . 10 . 2 2 . . 1 . . Highest-Rated Group 673 | . . 40 32 108 108 173 61 125 125 370 673 530 480 160 160 . . 307 . 395 . 94 97 . . 62 . . Highest-Rated Ally 159 | . . 16 16 31 31 29 31 31 27 159 159 96 96 80 85 . . 95 . 95 . 49 51 . . 62 . . Total Orders 22 | . . . . . . . 3 3 . . . . 15 . . . . 1 . . . . . . . . . . STAY 7 | . . . . . . . 2 2 . . . . 3 . . . . . . . . . . . . . . . FOLLOW 2 | . . . . . . . 1 1 . . . . . . . . . . . . . . . . . . . . AID 1 | . . . . . . . . . . . . . . . . . . 1 . . . . . . . . . . EXPLORE 9 | . . . . . . . . . . . . . 9 . . . . . . . . . . . . . . . RETURN 3 | . . . . . . . . . . . . . 3 . . . . . . . . . . . . . . . Ally Attacks 746 | . . 6 . 12 52 103 27 7 24 100 55 26 90 17 15 . . 64 . 53 . 13 17 . . 65 . . Total Damage 20604 | . . 55 . 167 666 1312 317 196 644 2370 1121 777 3595 279 627 . . 2215 . 1992 . . 507 . . 3764 . . Kills 119 | . . 2 . 4 7 14 2 3 4 17 6 2 22 4 6 . . 16 . 7 . . 2 . . 1 . . Allies Corrupted 10 | . . . . . . 1 . . . 3 . . . . . . . . . 2 . . . . . 4 . . Allies Melted 1 | . . . . . . . . . . . . . . . . . . . . 1 . . . . . . . . Intel | -11 -10 -10 -10 -9 -8 -8 -8 -8 -6 -6 -6 -6 -6 -6 -5 -5 -5 -5 -4 -4 -3 -3 -3 -2 -2 -2 -1 -1 ------- Run | Yrd Mat Min Exi Min Mat Sto Gar Rec Fac Ext Cet Arc Hub Gar Fac Gar Fac Gar Fac Gar Res Tes Gar Res Qua Frg Acc Com Active Infowar (turns) 5820 | 39 793 71 341 596 31 . . . . . . . . . . . . . . 1 49 . . 123 687 533 2556 . Optics 162 | . . . . . . . . . . . . . . . . . . . . . . . . . . . 162 . Sensors 854 | . . . . . . . . . . . . . . . . . . . . . 49 . . . 613 192 . . A.S.S. 2391 | . . . . . . . . . . . . . . . . . . . . . . . . . . . 2391 . IFF 2 | . . . . . . . . . . . . . . . . . . . . . . . . . 2 . . . Terrain 555 | 39 516 . . . . . . . . . . . . . . . . . . . . . . . . . . . Seismic 1316 | . 277 71 341 596 31 . . . . . . . . . . . . . . . . . . . . . . . Cloaking 213 | . . . . . . . . . . . . . . . . . . . . . . . . . . 213 . . Spoofing 1 | . . . . . . . . . . . . . . . . . . . . 1 . . . . . . . . Jamming 592 | . . . . . . . . . . . . . . . . . . . . . . . . . 275 316 1 . ECM 141 | . . . . . . . . . . . . . . . . . . . . . . . . 123 14 2 2 . Robot Analysis Total . | . . . . . . . . . . . . . . . . . . . . . . . . . . . . . Derelict Logs Recovered 4 | . . 2 . 2 . . . . . . . . . . . . . . . . . . . . . . . . Drone Launches 15 | . . . . . . . . . . . . . 9 . . . . . . . . . . . . 6 . . Drone Recoveries 5 | . . . . . . . . . . . . . 5 . . . . . . . . . . . . . . . Exploration | -11 -10 -10 -10 -9 -8 -8 -8 -8 -6 -6 -6 -6 -6 -6 -5 -5 -5 -5 -4 -4 -3 -3 -3 -2 -2 -2 -1 -1 ------------- Run | Yrd Mat Min Exi Min Mat Sto Gar Rec Fac Ext Cet Arc Hub Gar Fac Gar Fac Gar Fac Gar Res Tes Gar Res Qua Frg Acc Com Turns Passed 41482 | 131 1260 751 341 596 1034 968 1999 2479 875 1733 515 1402 663 1769 486 1508 172 2248 222 1957 779 494 1247 415 1121 5665 4424 4228 Spaces Moved 24044 | 61 742 668 338 582 562 374 952 996 496 797 214 243 315 720 205 768 137 1247 88 1188 819 647 1285 582 1151 2737 2317 2813 Core 59 | 3 3 . . . . . 53 . . . . . . . . . . . . . . . . . . . . . Treads 7476 | 58 136 . . . 429 374 805 415 116 346 214 227 270 . . 724 137 1247 88 82 56 . 69 . . 195 409 1079 Legs 4613 | . . . . . . . 94 116 138 219 . 3 45 720 205 44 . . . . . . . . . 479 1544 1006 Wheels 3165 | . 603 668 338 582 133 . . 465 173 203 . . . . . . . . . . . . . . . . . . Hover 4260 | . . . . . . . . . 69 29 . . . . . . . . . . . . 1113 582 1151 994 79 243 Flight 4471 | . . . . . . . . . . . . 13 . . . . . . . 1106 763 647 103 . . 1069 285 485 Fastest Speed 45 | 50 110 95 95 95 95 160 50 103 88 120 179 157 157 157 204 114 114 114 210 105 48 48 45 45 45 45 91 49 Average Speed 112 | 154 122 96 95 95 145 160 148 162 138 148 179 171 157 178 204 119 114 143 210 112 73 51 46 45 45 113 122 91 Slowest Speed 500 | 160 500 110 110 95 320 160 225 410 180 185 179 321 157 204 204 204 114 210 210 210 105 57 57 45 45 231 269 146 Overloaded Moves 558 | . . . . . . . . . . . . . . . . . . . . . . . . . . 512 46 . Propulsion Burnouts . | . . . . . . . . . . . . . . . . . . . . . . . . . . . . . Robots Hopped 23 | . . . . . . . . . . . . . . . . . . . . . 7 15 . . . 1 . . Potential Cave-ins 20 | . . . . . . . . . 2 . . . . . . . . . 2 . . . . 1 . 8 7 . Cave-ins Triggered . | . . . . . . . . . . . . . . . . . . . . . . . . . . . . . Teleports 3 | . . . . . . . . . . . . . . . . . . . . . . . . . 2 1 . . Exploration Rate (%) 61 | 4 96 99 78 96 51 73 86 96 14 85 68 79 56 71 8 93 4 90 3 87 34 79 73 24 88 42 62 48 Regions Visited 28 Branch Regions 13 Pre-discovered Areas 7 | . 1 1 . . . 2 . 3 . . . . . . . . . . . . . . . . . . . . Known Exits Taken 11 | . . . . . 1 1 . . 1 . . . 1 . 1 . 1 . 1 . 1 1 . 1 1 . . . Unknown Exits Taken 11 | 1 1 1 1 1 . . . 1 . 1 1 1 . . . . . . . . . . . . . 1 1 . Scrap Searched 3 | . . 2 . 1 . . . . . . . . . . . . . . . . . . . . . . . . Spaces Dug 141 | . . . . . . . 23 3 2 . . . 13 . . . . 5 1 10 2 7 2 3 21 35 10 4 Terrain Destroyed 2031 | . 2 22 . . . . 27 14 13 72 24 23 32 29 27 10 2 119 8 72 13 19 21 142 34 513 531 262 Melee 23 | . . . . . . . 22 . . . . . . . . . . . . . . . . 1 . . . . Projectile 1020 | . . . . . . . 1 13 13 72 24 23 32 29 . 10 2 37 8 52 13 19 21 4 34 258 294 61 AOE 987 | . 2 22 . . . . 4 . . . . . . . 27 . . 82 . 20 . . . 137 . 255 237 201 Terrain Rammed . | . . . . . . . . . . . . . . . . . . . . . . . . . . . . . Walls Destroyed . | . . . . . . . . . . . . . . . . . . . . . . . . . . . . . Machines Disabled . | . . . . . . . . . . . . . . . . . . . . . . . . . . . . . Actions | -11 -10 -10 -10 -9 -8 -8 -8 -8 -6 -6 -6 -6 -6 -6 -5 -5 -5 -5 -4 -4 -3 -3 -3 -2 -2 -2 -1 -1 --------- Run | Yrd Mat Min Exi Min Mat Sto Gar Rec Fac Ext Cet Arc Hub Gar Fac Gar Fac Gar Fac Gar Res Tes Gar Res Qua Frg Acc Com Total 35647 | 82 975 747 359 611 707 684 1261 1749 649 1260 303 1205 429 1124 253 1268 148 1593 113 1735 954 756 1865 704 1617 4838 3412 4246 Wait 6510 | . 134 49 4 23 58 262 60 583 54 244 27 910 44 229 2 326 . 147 5 344 15 9 455 44 223 1053 339 867 Move 23971 | 60 741 667 337 581 561 373 950 995 495 796 213 242 314 718 205 766 137 1245 87 1186 804 620 1283 581 1150 2735 2316 2813 Hop 20 | . . . . . . . . . . . . . . . . . . . . . 7 12 . . . 1 . . Pick Up 577 | 8 8 6 3 . 11 2 22 28 12 25 7 7 3 29 9 23 2 27 3 34 16 22 7 15 21 110 76 41 Fast Attach 233 | 7 9 . 2 . 11 7 15 2 11 2 1 4 . 6 1 13 . 4 . 4 22 . 10 . 13 51 20 18 Attach 124 | . 1 2 2 . 2 . 13 7 2 3 2 3 1 1 1 2 . 3 1 1 3 1 . 2 5 36 19 11 Detach 39 | . . . . . . . 4 11 . 2 . . . 2 . 3 . 2 . . 1 . . . 1 8 2 3 Swap 321 | . 9 3 2 . 6 2 16 5 2 11 2 4 18 11 4 5 2 14 2 14 7 9 5 19 28 79 28 14 Drop 682 | . 4 6 9 . 20 9 22 35 20 21 8 11 2 27 7 34 2 22 2 33 35 22 17 11 31 146 75 51 Fire 2809 | 7 61 14 . 7 2 . 92 54 53 97 35 24 46 94 21 96 5 127 13 119 40 61 88 27 145 550 516 415 Melee 117 | . . . . . 36 21 55 . . . . . . . . . . . . . . . . 5 . . . . Ram 5 | . 5 . . . . . . . . . . . . . . . . . . . . . . . . . . . Kick 9 | . . . . . . . . . . . . . . 1 3 . . . . . . . . . . . . 5 Crush 15 | . 3 . . . . . . 2 . 4 . . 1 . . . . . . . 4 . . . . . . 1 Escape Stasis 131 | . . . . . . . . . . 26 . . . 6 . . . 2 . . . . . . . 69 21 7 Rewire 52 | . . . . . . . 12 27 . 13 . . . . . . . . . . . . . . . . . . Trap . | . . . . . . . . . . . . . . . . . . . . . . . . . . . . . Miscellaneous 32 | . . . . . . 8 . . . 16 8 . . . . . . . . . . . . . . . . . Route ------- -11/Scrapyard -10/Materials (discovered 5 exits: *Mat x3 / [*Min] / [*Sub]) -10/Mines (discovered 3 exits: *Mat x2 / *Exi) -10/Exiles -9/Mines (discovered 2 exits: *Mat x2) -8/Materials (discovered 5 exits: *Fac x3 / *Sto x2) -8/Storage (discovered 3 exits: *Fac / Rec / Gar) -8/Garrison (discovered 3 exits: *Rec x3) -8/Recycling -6/Factory (discovered 3 exits: Fac x2 / *Ext) -6/Extension (discovered 2 exits: *Fac / *Cet) -6/Cetus (discovered 2 exits: *Fac / [*Arc]) -6/Archives (discovered 3 exits: *Fac / *Hub x2) -6/Hub_04(d) (discovered 4 exits: *Fac x3 / Gar) -6/Garrison (discovered 3 exits: *Fac x3) -5/Factory -5/Garrison (discovered 3 exits: *Fac x3) -5/Factory -5/Garrison (discovered 3 exits: *Fac x3) -4/Factory -4/Garrison (discovered 3 exits: *Res x3) -3/Research (discovered 4 exits: *Res / Arm / *Tes x2) -3/Testing (discovered 2 exits: *Res / Gar) -3/Garrison (discovered 3 exits: *Res x3) -2/Research (discovered 2 exits: *Qua x2) -2/Quarantine (discovered 3 exits: *Acc / *Sec / *Frg) -2/Protoforge -1/Access (discovered 2 exits: Sur / [*Com]) -1/Command (discovered 2 exits: Sur x2) 0b10 Command History --------- Turn | Location | Event 2 | -11/Scrapyard | Met Revision 17 20 | -11/Scrapyard | Discovered new exit (range 15) 132 | -11/Scrapyard | Entered Materials 304 | -10/Materials | Build established: Mutant 308 | -10/Materials | Discovered new exit (range 8) 508 | -10/Materials | Discovered new exit (range 9) 619 | -10/Materials | Discovered new exit (range 4) 708 | -10/Materials | Discovered new exit (range 6) 832 | -10/Materials | Derelicts attacked the area 961 | -10/Materials | Discovered new exit (range 7) 1050 | -10/Materials | Repaired Lgt. Treads 1114 | -10/Materials | Identified exit to Materials 1392 | -10/Materials | Entered Mines 1447 | -10/Mines | Discovered exit to Materials (range 4) 1456 | -10/Mines | Assisted by bots powering up and referring to "LRC-V3" 1525 | -10/Mines | Core integrity fell below 50% 1571 | -10/Mines | Deemed a non-threat by the Exiles lab entrance 1571 | -10/Mines | Discovered new exit (range 5) 1874 | -10/Mines | Discovered exit to Materials (range 12) 1963 | -10/Mines | Joined a pair of Derelicts in attacking an 0b10 outpost 2143 | -10/Mines | Entered Exiles 2143 | -10/Exiles | Accompanied by 2 allies 2167 | -10/Exiles | Met 8R-AWN 2184 | -10/Exiles | Met EX-HEX 2210 | -10/Exiles | Met EX-BIN 2224 | -10/Exiles | Aligned with FarCom system 2225 | -10/Exiles | Given EX-Vault access code 2247 | -10/Exiles | Opened EX-Vault 2251 | -10/Exiles | Found Prototype Energy Cannon 2251 | -10/Exiles | Identified YOLO Cannon 2256 | -10/Exiles | Found Prototype Energy Cannon 2256 | -10/Exiles | Identified Firepult 2276 | -10/Exiles | Found Prototype Ballistic Gun 2295 | -10/Exiles | Warned to stay clear of 0b10 Research branches 2373 | -10/Exiles | Visited The Gauntlet 2395 | -10/Exiles | Met EX-DEC 2464 | -10/Exiles | Discovered new exit (range 14) 2484 | -10/Exiles | Stole three prototypes: Firepult, YOLO Cannon, XL Autogun Array 2484 | -10/Exiles | Entered Mines 2484 | -9/Mines | Accompanied by 2 allies 2509 | -9/Mines | Found a hidden stash of uninstalled traps 2532 | -9/Mines | Learned 4 Materials zone layouts 2811 | -9/Mines | Learned Materials emergency access door positions 2857 | -9/Mines | Discovered new exit (range 4) 2961 | -9/Mines | Discovered new exit (range 14) 2967 | -9/Mines | Received a Mining Laser from a helpful Derelict 3080 | -9/Mines | Entered Materials 3080 | -8/Materials | Accompanied by 5 allies 3080 | -8/Materials | Evolved 4 slots: Propulsion x1, Utility x1, Weapon x2 3081 | -8/Materials | Identified exit to Storage 3085 | -8/Materials | Led the pair of lost Derelicts to an unsafe place 3177 | -8/Materials | Discovered exit to Storage (range 4) 3187 | -8/Materials | Garrison activated, responded to threat 3394 | -8/Materials | Discovered new exit (range 13) 3559 | -8/Materials | Identified exit to Factory 3639 | -8/Materials | Learned 8 Factory zone layouts 3709 | -8/Materials | Learned location of 1 exit from Recycling 3767 | -8/Materials | Learned 4 Factory zone layouts 3815 | -8/Materials | Learned Storage trap positions 3871 | -8/Materials | Learned location of 1 exit from Storage 3938 | -8/Materials | Learned 4 Factory zone layouts 3976 | -8/Materials | Central database locked down 3976 | -8/Materials | Identified XL Autogun Array 4114 | -8/Materials | Entered Storage 4115 | -8/Storage | Identified exit to Recycling 4116 | -8/Storage | Loaded intel: 22 trap records 4116 | -8/Storage | FarCom data flow suspended 4199 | -8/Storage | Build established: Gladiator 4363 | -8/Storage | Assisted by bots powering up and referring to "LRC-V3" 4587 | -8/Storage | Garrison activated, responded to threat 4659 | -8/Storage | Build established: Commander-Gladiator 4785 | -8/Storage | Loaded intel: 1 garrison access location 4838 | -8/Storage | Identified exit to Garrison 4840 | -8/Storage | Discovered exit to Factory (range 13) 4843 | -8/Storage | Learned Storage garrison access intel 4847 | -8/Storage | Garrison activated, responded to threat 4892 | -8/Storage | Learned location of Zion (-6) 4959 | -8/Storage | Learned Factory recycling unit intel 5029 | -8/Storage | Learned 2 Storage zone layouts 5069 | -8/Storage | Learned Factory garrison access intel 5082 | -8/Storage | Entered Garrison 5082 | -8/Garrison | Accompanied by 3 allies 5116 | -8/Garrison | Triggered checkpoint 5152 | -8/Garrison | Build established: Gladiator 5432 | -8/Garrison | Triggered checkpoint 5462 | -8/Garrison | Triggered checkpoint 5486 | -8/Garrison | Triggered checkpoint 5496 | -8/Garrison | Core integrity fell below 50% 5505 | -8/Garrison | Released all parts (5) 5511 | -8/Garrison | Destroyed 8 combat bots 5523 | -8/Garrison | System corruption reached 10% 5531 | -8/Garrison | Lost 5 parts (2p3n) 5869 | -8/Garrison | Core integrity fell below 20% 5935 | -8/Garrison | Discovered exit to Recycling (range 8) 6028 | -8/Garrison | Build established: Scavenger-Tank 6301 | -8/Garrison | Discovered exit to Recycling (range 11) 6347 | -8/Garrison | Triggered checkpoint 6392 | -8/Garrison | Lost 3 parts (1p1n1u) 6614 | -8/Garrison | Installed Relay Interface Framework 6628 | -8/Garrison | Triggered checkpoint 6734 | -8/Garrison | Discovered exit to Recycling (range 10) 7081 | -8/Garrison | Entered Recycling 7081 | -8/Recycling | Accompanied by 2 allies 7082 | -8/Recycling | Identified exit to Scraptown 7619 | -8/Recycling | Discovered new exit (range 16) 7646 | -8/Recycling | Scanned before Scraplab entrance 7677 | -8/Recycling | Entered Scraplab 7683 | -8/Recycling | Angered Scraplab inhabitants 7687 | -8/Recycling | Found Prototype Device 7726 | -8/Recycling | Identified Scrap Engine 8018 | -8/Recycling | Build established: Gunner 8695 | -8/Recycling | Build established: Commander-Construct 9560 | -8/Recycling | Entered Factory 9560 | -6/Factory | Accompanied by 6 allies 9560 | -6/Factory | Evolved 4 slots: Propulsion x2, Utility x2 9561 | -6/Factory | Identified exit to Extension 9562 | -6/Factory | Identified exit to Factory 9563 | -6/Factory | Loaded intel: 8 recycling unit locations 9564 | -6/Factory | Loaded intel: 4 garrison access locations 10078 | -6/Factory | Fabricated Huge Storage Unit (x1) 10183 | -6/Factory | Lost 3 allies 10387 | -6/Factory | Build established: Construct 10435 | -6/Factory | Entered Extension 10672 | -6/Extension | Rescued a captive Derelict 10674 | -6/Extension | Rescued a captive Derelict 10756 | -6/Extension | Rescued a captive Derelict 10969 | -6/Extension | Rescued A7 11237 | -6/Extension | Spotted B-75 Beast 11254 | -6/Extension | Spotted B-75 Beast 11255 | -6/Extension | Allies destroyed B-75 Beast 11264 | -6/Extension | Destroyed B-75 Beast 11335 | -6/Extension | Disrupted transfer network 11359 | -6/Extension | Rescued a captive Derelict 11360 | -6/Extension | Rescued a captive Derelict 11485 | -6/Extension | First assault squad dispatched 11843 | -6/Extension | Rescued a captive Derelict 11844 | -6/Extension | Rescued a captive Derelict 12064 | -6/Extension | Rescued a captive Derelict 12103 | -6/Extension | Discovered exit to Factory (range 10) 12105 | -6/Extension | Discovered new exit (range 6) 12168 | -6/Extension | Entered Cetus 12168 | -6/Cetus | Accompanied by 7 allies (A7) 12173 | -6/Cetus | Acquired a Cetus Manufacturing Module code from A7 12191 | -6/Cetus | Spotted Cetus Guard 12191 | -6/Cetus | Spotted Cetus Guard 12196 | -6/Cetus | Spotted Cetus Guard 12196 | -6/Cetus | Allies destroyed Cetus Guard 12197 | -6/Cetus | Spotted Cetus Guard 12205 | -6/Cetus | Destroyed Cetus Guard 12214 | -6/Cetus | Allies destroyed Cetus Guard 12220 | -6/Cetus | Allies destroyed Cetus Guard 12317 | -6/Cetus | Started Cetus Manufacturing Module 12342 | -6/Cetus | Manufactured an Enhanced Grunt 12355 | -6/Cetus | Escorted A7 to Cetus Mainframe 12367 | -6/Cetus | Manufactured an Enhanced Grunt 12380 | -6/Cetus | Discovered new exit (range 16) 12392 | -6/Cetus | Manufactured an Enhanced Grunt 12415 | -6/Cetus | Spotted Cetus Guard 12415 | -6/Cetus | Spotted Cetus Guard 12417 | -6/Cetus | Manufactured an Enhanced Grunt 12420 | -6/Cetus | Spotted Cetus Guard 12430 | -6/Cetus | Destroyed Cetus Guard 12431 | -6/Cetus | Allies destroyed Cetus Guard 12431 | -6/Cetus | Spotted Cetus Guard 12436 | -6/Cetus | Allies destroyed Cetus Guard 12442 | -6/Cetus | Manufactured an Enhanced Grunt 12444 | -6/Cetus | Destroyed Cetus Guard 12453 | -6/Cetus | Discovered exit to Factory (range 15) 12468 | -6/Cetus | Met Revision 17 12580 | -6/Cetus | Murdered A7 12588 | -6/Cetus | Extracted ID and sensor layout for unrecognized location from A7's data core 12592 | -6/Cetus | Found Med. Regenerative Plating 12668 | -6/Cetus | Build established: Commander-Construct 12683 | -6/Cetus | Entered Archives 12683 | -6/Archives | Accompanied by 7 allies 12988 | -6/Archives | Discovered exit to Factory (range 15) 13155 | -6/Archives | Discovered new exit (range 16) 13490 | -6/Archives | Discovered new exit (range 16) 14085 | -6/Archives | Entered Hub_04(d) 14085 | -6/Hub_04(d) | Accompanied by 5 allies 14148 | -6/Hub_04(d) | Discovered exit to Factory (range 4) 14336 | -6/Hub_04(d) | Spotted B-75 Beast 14358 | -6/Hub_04(d) | Destroyed B-75 Beast 14435 | -6/Hub_04(d) | First assault squad dispatched 14459 | -6/Hub_04(d) | Garrison activated, responded to threat 14494 | -6/Hub_04(d) | Discovered exit to Factory (range 15) 14508 | -6/Hub_04(d) | Core integrity fell below 50% 14535 | -6/Hub_04(d) | Destroyed 7 combat bots 14556 | -6/Hub_04(d) | Discovered exit to Factory (range 7) 14638 | -6/Hub_04(d) | Network Hub disabled 14681 | -6/Hub_04(d) | Identified exit to Garrison 14707 | -6/Hub_04(d) | Network Hub disabled 14707 | -6/Hub_04(d) | Network Hub disabled 14748 | -6/Hub_04(d) | Entered Garrison 14752 | -6/Garrison | Triggered checkpoint 14771 | -6/Garrison | Build established: Construct 14778 | -6/Garrison | Expanded RIF knowledge: Coupler Efficiency 14808 | -6/Garrison | Triggered checkpoint 14850 | -6/Garrison | Garrison Relay disabled 15010 | -6/Garrison | Triggered checkpoint 15062 | -6/Garrison | Triggered checkpoint 15067 | -6/Garrison | Triggered checkpoint 15071 | -6/Garrison | Triggered checkpoint 15140 | -6/Garrison | Build established: Bothacker-Construct 15375 | -6/Garrison | Discovered exit to Factory (range 13) 15707 | -6/Garrison | Build established: Construct 15836 | -6/Garrison | Rescued a captive Derelict 15888 | -6/Garrison | Discovered exit to Factory (range 13) 16324 | -6/Garrison | Found embedded Infiltrators 16378 | -6/Garrison | Triggered checkpoint 16411 | -6/Garrison | Garrison Relay disabled 16482 | -6/Garrison | Discovered exit to Factory (range 11) 16486 | -6/Garrison | Build established: Bothacker-Construct 16504 | -6/Garrison | Discovered exit to Factory (range 7) 16504 | -6/Garrison | Discovered exit to Factory (range 31) 16504 | -6/Garrison | Discovered exit to Factory (range 71) 16517 | -6/Garrison | Entered Factory 16517 | -5/Factory | Accompanied by 2 allies 16517 | -5/Factory | Evolved 2 slots: Power x1, Weapon x1 16802 | -5/Factory | Spotted B-75 Beast 16811 | -5/Factory | Assimilated Beast 6a with formatsys_high 16817 | -5/Factory | First assault squad dispatched 16818 | -5/Factory | P-70 Sage assimilated allied Beast 6a 16911 | -5/Factory | Garrison activated, responded to threat 17003 | -5/Factory | Identified exit to Garrison 17003 | -5/Factory | Entered Garrison 17004 | -5/Garrison | Destroyed 18 combat bots 17405 | -5/Garrison | Garrison Relay disabled 17497 | -5/Garrison | Triggered checkpoint 17661 | -5/Garrison | Triggered checkpoint 17705 | -5/Garrison | Discovered new exit (range 3) 17889 | -5/Garrison | Triggered checkpoint 17951 | -5/Garrison | Discovered new exit (range 15) 17963 | -5/Garrison | Expanded RIF knowledge: Hotswap 18027 | -5/Garrison | Triggered checkpoint 18109 | -5/Garrison | Triggered checkpoint 18227 | -5/Garrison | Triggered checkpoint 18279 | -5/Garrison | Found Fusion Bomb Launcher 18313 | -5/Garrison | Garrison Relay disabled 18337 | -5/Garrison | Discovered new exit (range 8) 18511 | -5/Garrison | Entered Factory 18683 | -5/Factory | Identified exit to Garrison 18683 | -5/Factory | Entered Garrison 18705 | -5/Garrison | Triggered checkpoint 18705 | -5/Garrison | Found embedded Infiltrators 18769 | -5/Garrison | Expanded RIF knowledge: Signal Jamming 18983 | -5/Garrison | Triggered checkpoint 19062 | -5/Garrison | Destroyed 14 combat bots 19111 | -5/Garrison | Triggered checkpoint 19170 | -5/Garrison | Garrison Relay disabled 19191 | -5/Garrison | Triggered checkpoint 19250 | -5/Garrison | Discovered new exit (range 12) 19311 | -5/Garrison | Triggered checkpoint 19359 | -5/Garrison | Triggered checkpoint 19411 | -5/Garrison | Lost 3 allies 19470 | -5/Garrison | Discovered new exit (range 12) 19748 | -5/Garrison | Discovered new exit (range 11) 19846 | -5/Garrison | Expanded RIF knowledge: Autoassimilate 19987 | -5/Garrison | Triggered checkpoint 20931 | -5/Garrison | Entered Factory 20931 | -4/Factory | Evolved 2 slots: Power x1, Utility x1 21145 | -4/Factory | Identified exit to Garrison 21153 | -4/Factory | Entered Garrison 21181 | -4/Garrison | Triggered checkpoint 21197 | -4/Garrison | Garrison Relay disabled 21343 | -4/Garrison | Triggered checkpoint 21502 | -4/Garrison | Build established: Botlord-Construct 21679 | -4/Garrison | Triggered checkpoint 21711 | -4/Garrison | Discovered new exit (range 12) 21757 | -4/Garrison | Triggered checkpoint 21831 | -4/Garrison | Triggered checkpoint 21927 | -4/Garrison | Discovered new exit (range 10) 21961 | -4/Garrison | Triggered checkpoint 21972 | -4/Garrison | Garrison Relay disabled 22069 | -4/Garrison | Discovered new exit (range 16) 22126 | -4/Garrison | Expanded RIF knowledge: Zone Cloak 22157 | -4/Garrison | Triggered checkpoint 22203 | -4/Garrison | Triggered checkpoint 22238 | -4/Garrison | Garrison Relay disabled 22348 | -4/Garrison | Lost 7 allies 22780 | -4/Garrison | Found embedded Infiltrators 22886 | -4/Garrison | Spotted B-86 Titan 22902 | -4/Garrison | Destroyed B-86 Titan 22914 | -4/Garrison | P-70 Sage assimilated allied MT-HV3(x) 22955 | -4/Garrison | Lost 6 allies 22985 | -4/Garrison | Found Relay Coupler [Proto] 22987 | -4/Garrison | Found Relay Coupler [Proto] 22990 | -4/Garrison | Found Relay Coupler [Proto] 22992 | -4/Garrison | Found Relay Coupler [Proto] 23110 | -4/Garrison | Entered Research 23110 | -3/Research | Evolved 2 slots: Propulsion x1, Utility x1 23310 | -3/Research | Revision forces began assault on 0b10 23405 | -3/Research | Met up with Revision 17++ 23495 | -3/Research | Discovered new exit (range 7) 23517 | -3/Research | Identified exit to Research 23561 | -3/Research | Spotted B-86 Titan 23566 | -3/Research | Identified exit to Armory 23566 | -3/Research | Identified exit to Testing 23587 | -3/Research | Destroyed B-86 Titan 23591 | -3/Research | Found Prototype Processor 23591 | -3/Research | Identified Exp. Melee Analysis Suite 23710 | -3/Research | Found Unknown Protection 23710 | -3/Research | Identified Hvy. Insulated Plating 23810 | -3/Research | Research terminal network offline 23889 | -3/Research | Entered Testing 23908 | -3/Testing | Found Prototype Protection 23918 | -3/Testing | Found Prototype Protection 23925 | -3/Testing | Identified SHELL Armor 23925 | -3/Testing | Identified Hvy. Regenerative Plating 24010 | -3/Testing | Discovered exit to Research (range 5) 24045 | -3/Testing | Found Prototype Energy Gun 24052 | -3/Testing | Identified Warp Gun 24134 | -3/Testing | Found Prototype Launcher 24150 | -3/Testing | Spotted Superbehemoth 24171 | -3/Testing | Found Prototype Device 24175 | -3/Testing | Spotted PX-9EWJCYLEOT 24192 | -3/Testing | Identified Exp. Thermal Shield 24227 | -3/Testing | Identified Z-bomb Delivery System 24232 | -3/Testing | Found Prototype Energy Gun 24238 | -3/Testing | Spotted Striker 24258 | -3/Testing | Spotted PD-ED8TXZZK5F 24285 | -3/Testing | Found Prototype Device 24383 | -3/Testing | Identified exit to Garrison 24383 | -3/Testing | Entered Garrison 24424 | -3/Garrison | Identified AEGIS Remote Shield 24437 | -3/Garrison | Triggered checkpoint 24447 | -3/Garrison | Garrison Relay disabled 24460 | -3/Garrison | Destroyed 7 combat bots 24473 | -3/Garrison | Identified Tachyon Dispersion Ray 24498 | -3/Garrison | Spotted B-86 Titan 24551 | -3/Garrison | Destroyed B-86 Titan 24557 | -3/Garrison | Triggered checkpoint 24593 | -3/Garrison | Triggered checkpoint 24602 | -3/Garrison | Discovered exit to Research (range 15) 24626 | -3/Garrison | Expanded RIF knowledge: Watcher Feeds 24703 | -3/Garrison | Triggered checkpoint 24788 | -3/Garrison | Found Unknown Device 24788 | -3/Garrison | Identified Adv. Force Booster 24825 | -3/Garrison | Triggered checkpoint 24873 | -3/Garrison | Discovered exit to Research (range 4) 24885 | -3/Garrison | Discovered exit to Research (range 82) 24885 | -3/Garrison | Discovered exit to Research (range 20) 24885 | -3/Garrison | Discovered exit to Research (range 57) 25630 | -3/Garrison | Entered Research 25630 | -2/Research | Evolved 2 slots: Utility x2 25718 | -2/Research | Spotted B-90 Cyclops 25726 | -2/Research | Identified exit to Quarantine 25892 | -2/Research | Unchained authorized (GL-D0S) 26045 | -2/Research | Entered Quarantine 26189 | -2/Quarantine | Found Alien Artifact 26219 | -2/Quarantine | Discovered new exit (range 6) 26316 | -2/Quarantine | Found Alien Artifact 26341 | -2/Quarantine | Found Alien Artifact 26389 | -2/Quarantine | Found Alien Artifact 26389 | -2/Quarantine | Identified Dimensional Node Initializer 26389 | -2/Quarantine | Initialized slip node 26391 | -2/Quarantine | Found Dimensional Node Initializer 26412 | -2/Quarantine | Found Alien Artifact 26413 | -2/Quarantine | Found Alien Artifact 26417 | -2/Quarantine | Found Alien Artifact 26418 | -2/Quarantine | Identified Hpw. Transdimensional Reconstructor (x2) 26418 | -2/Quarantine | Warped through subspace to slip node 26422 | -2/Quarantine | Found Alien Artifact 26422 | -2/Quarantine | Identified Transdimensional Reconstructor (x2) 26422 | -2/Quarantine | Warped through subspace to slip node 26553 | -2/Quarantine | System corruption reached 10% 26646 | -2/Quarantine | Identified Phase Armor 26651 | -2/Quarantine | Spotted Fortress 26897 | -2/Quarantine | Destroyed Fortress 26906 | -2/Quarantine | Found Prototype Device 26908 | -2/Quarantine | Found Prototype Device 26917 | -2/Quarantine | Found Prototype Device 26917 | -2/Quarantine | Identified Exp. Force Field 26924 | -2/Quarantine | Identified Exp. EM Shield 26939 | -2/Quarantine | Identified Thermal Barrier 27017 | -2/Quarantine | Discovered new exit (range 6) 27017 | -2/Quarantine | Discovered new exit (range 7) 27019 | -2/Quarantine | Identified exit to Section 7 27020 | -2/Quarantine | Identified exit to Protoforge 27045 | -2/Quarantine | First assault squad dispatched 27166 | -2/Quarantine | Entered Protoforge 27228 | -2/Protoforge | Spotted Hotshot 27228 | -2/Protoforge | Spotted Hotshot 27228 | -2/Protoforge | Spotted Hotshot 27228 | -2/Protoforge | Spotted Hotshot 27228 | -2/Protoforge | Spotted Hotshot 27248 | -2/Protoforge | Destroyed Hotshot 27250 | -2/Protoforge | Destroyed Hotshot 27252 | -2/Protoforge | Destroyed Hotshot 27258 | -2/Protoforge | Destroyed Hotshot 27278 | -2/Protoforge | Destroyed Hotshot 27320 | -2/Protoforge | Discovered new exit (range 12) 27321 | -2/Protoforge | Build established: Bothacker-Construct 27328 | -2/Protoforge | Initialized slip node 27449 | -2/Protoforge | Additional patrols dispatched to research labs 27449 | -2/Protoforge | Superfortress began startup sequence 27477 | -2/Protoforge | Identified Subatomic Replicator 27481 | -2/Protoforge | Spotted Immortal 27481 | -2/Protoforge | Spotted Immortal 27514 | -2/Protoforge | P-80 Master assimilated allied Expert 9a 27530 | -2/Protoforge | Destroyed Immortal 27536 | -2/Protoforge | Destroyed Immortal 27542 | -2/Protoforge | Found Prototype Piercing Weapon 27542 | -2/Protoforge | Identified Exp. Jetlance 27547 | -2/Protoforge | Found Prototype Device 27547 | -2/Protoforge | Identified Exp. Cloaking Device 27634 | -2/Protoforge | Found Prototype Device 27634 | -2/Protoforge | Identified Cep. Antimissile System 27644 | -2/Protoforge | Found Exp. Cloaking Device 27662 | -2/Protoforge | Spotted Decapitator 27662 | -2/Protoforge | Spotted Decapitator 27662 | -2/Protoforge | Spotted Decapitator 27662 | -2/Protoforge | Spotted Decapitator 27690 | -2/Protoforge | Found Prototype Device 27733 | -2/Protoforge | Forge Plexus network access discovered 27788 | -2/Protoforge | Destroyed Decapitator 27790 | -2/Protoforge | Destroyed Decapitator 27792 | -2/Protoforge | Destroyed Decapitator 27796 | -2/Protoforge | Destroyed Decapitator 27858 | -2/Protoforge | Spotted V235-w 27860 | -2/Protoforge | Destroyed V235-w 27864 | -2/Protoforge | Found Prototype Protection 27864 | -2/Protoforge | Identified Centrium Heavy Armor Plating 27880 | -2/Protoforge | Identified Crosscalibrator 27909 | -2/Protoforge | Found Cep. Weapon Articulator 27918 | -2/Protoforge | Found Cep. Weapon Articulator 27933 | -2/Protoforge | Found Cep. Networked Targeting System 27944 | -2/Protoforge | Found Faulty Cep. Hypertargeting System 27950 | -2/Protoforge | Found Faulty Exp. Kinecellerator 27954 | -2/Protoforge | Found Faulty Cep. Hypertargeting System 27958 | -2/Protoforge | Found Cep. Weapon Articulator 28031 | -2/Protoforge | Spotted Immortal 28035 | -2/Protoforge | Destroyed Immortal 28041 | -2/Protoforge | Spotted Immortal 28045 | -2/Protoforge | Destroyed Immortal 28045 | -2/Protoforge | Spotted Immortal 28085 | -2/Protoforge | Destroyed Immortal 28138 | -2/Protoforge | Destroyed 8 combat bots 28157 | -2/Protoforge | Spotted Decapitator 28185 | -2/Protoforge | Build established: Hauler-Construct 28302 | -2/Protoforge | Spotted AP7-3 28302 | -2/Protoforge | Spotted AP7-3 28331 | -2/Protoforge | Destroyed AP7-3 28352 | -2/Protoforge | Destroyed AP7-3 28355 | -2/Protoforge | Found Prototype Processor 28355 | -2/Protoforge | Identified Exp. Targeting Computer 28367 | -2/Protoforge | Found Prototype Device 28367 | -2/Protoforge | Identified Exp. ECM Suite 28370 | -2/Protoforge | Found Prototype Processor 28370 | -2/Protoforge | Identified Exp. Target Analyzer 28375 | -2/Protoforge | Found Prototype Energy Gun 28375 | -2/Protoforge | Identified Enh. Gamma Rifle 28384 | -2/Protoforge | Found Cep. XC Strikerail 28416 | -2/Protoforge | First assault squad dispatched 28436 | -2/Protoforge | Found Faulty Cep. Thermoelectric Network 28439 | -2/Protoforge | Found Prototype Device 28444 | -2/Protoforge | Found Cep. Thermoelectric Network 28448 | -2/Protoforge | Found Faulty Cep. Impact Drone Bay 28453 | -2/Protoforge | Found Cep. Impact Drone Bay 28462 | -2/Protoforge | Identified Cep. Cloak Mesh 28548 | -2/Protoforge | Found Prototype Energy Gun 28548 | -2/Protoforge | Identified Enh. Gamma Rifle 28709 | -2/Protoforge | Found Cep. Nanofilaments [Conductive] 28709 | -2/Protoforge | Installed Cep. Nanofilaments [Conductive], 2 resistances modified: TH -15%, EM +25% 28880 | -2/Protoforge | Found Faulty Cep. Rapid Grenade Launcher 28884 | -2/Protoforge | Found Faulty Cep. EMP Blanket Launcher 28920 | -2/Protoforge | Found Cep. Tactical Fusion Warhead 28922 | -2/Protoforge | Found Cep. Tiamat Rocket Array 28925 | -2/Protoforge | Found Faulty Cep. EMP Blanket Launcher 28983 | -2/Protoforge | Spotted V010-x 28983 | -2/Protoforge | Spotted V278-h 28988 | -2/Protoforge | Spotted V979-k 28993 | -2/Protoforge | Destroyed V979-k 29022 | -2/Protoforge | Destroyed V010-x 29026 | -2/Protoforge | Found Cep. Combat Aerolev Unit 29041 | -2/Protoforge | Spotted Immortal 29065 | -2/Protoforge | Destroyed Immortal 29090 | -2/Protoforge | Found Exp. Active Sensor Suite 29157 | -2/Protoforge | Destroyed 11 combat bots 29248 | -2/Protoforge | Spotted Decapitator 29248 | -2/Protoforge | Spotted Decapitator 29248 | -2/Protoforge | Spotted Decapitator 29254 | -2/Protoforge | Destroyed Decapitator 29256 | -2/Protoforge | Destroyed Decapitator 29260 | -2/Protoforge | Destroyed Decapitator 29262 | -2/Protoforge | Destroyed Decapitator 29378 | -2/Protoforge | Destroyed 8 combat bots 29407 | -2/Protoforge | Found Cep. Heavy Railcannon 29501 | -2/Protoforge | Found Faulty Cep. Disintegration Ray 29513 | -2/Protoforge | Spotted V474-v 29526 | -2/Protoforge | Destroyed V474-v 29540 | -2/Protoforge | Found Prototype Device 29541 | -2/Protoforge | Identified Exp. Actuator Array 29556 | -2/Protoforge | Found Faulty Cep. Disintegration Ray 29561 | -2/Protoforge | Found Cep. Miniperforator 29620 | -2/Protoforge | Found Cep. Gyrokinetic System 29622 | -2/Protoforge | Found Cep. Gyrokinetic System 29639 | -2/Protoforge | Found Cep. XC Strikerail 29641 | -2/Protoforge | Found Cep. Plasma Driver 29652 | -2/Protoforge | Found Cep. Helical Railcannon 29656 | -2/Protoforge | Found Cep. XC Strikerail 29672 | -2/Protoforge | Found Faulty Cep. XC Strikerail 29676 | -2/Protoforge | Found Cep. Helical Railcannon 29686 | -2/Protoforge | Found Faulty Cep. Miniperforator 29689 | -2/Protoforge | Found Faulty Cep. XC Strikerail 29856 | -2/Protoforge | Destroyed 11 combat bots 30184 | -2/Protoforge | Found Cep. NT7 Matterbank 30194 | -2/Protoforge | Found Cep. NT7 Matterbank 30200 | -2/Protoforge | Spotted V728-j 30205 | -2/Protoforge | Spotted V434-w 30207 | -2/Protoforge | Spotted V157-w 30212 | -2/Protoforge | Destroyed V728-j 30212 | -2/Protoforge | Spotted V087-k 30213 | -2/Protoforge | Destroyed V434-w 30219 | -2/Protoforge | Destroyed V157-w 30233 | -2/Protoforge | Destroyed V087-k 30238 | -2/Protoforge | Found Prototype Device 30238 | -2/Protoforge | Identified Adv. Particle Accelerator 30253 | -2/Protoforge | Found Prototype Device 30253 | -2/Protoforge | Identified Exp. Shield Generator 30267 | -2/Protoforge | Found Cep. Antigrav Storage Unit 30272 | -2/Protoforge | Found Cep. Matter Streamer 30607 | -2/Protoforge | Core integrity fell below 50% 30663 | -2/Protoforge | Destroyed 16 combat bots 30694 | -2/Protoforge | Spotted Decapitator 30696 | -2/Protoforge | Spotted Decapitator 30696 | -2/Protoforge | Spotted Decapitator 30696 | -2/Protoforge | Spotted V950-i 30701 | -2/Protoforge | Destroyed Decapitator 30703 | -2/Protoforge | Destroyed Decapitator 30705 | -2/Protoforge | Destroyed Decapitator 30732 | -2/Protoforge | Spotted V213-a 30756 | -2/Protoforge | Found Faulty Cep. Phase Shift Module 30762 | -2/Protoforge | Found Faulty Cep. Energy Mantle 30781 | -2/Protoforge | Found Cep. Phase Shift Module 30819 | -2/Protoforge | Destroyed V213-a 30821 | -2/Protoforge | Destroyed V950-i 30904 | -2/Protoforge | Destroyed 7 combat bots 30921 | -2/Protoforge | Spotted V109-s 30921 | -2/Protoforge | Spotted V482-t 30932 | -2/Protoforge | Destroyed V482-t 30947 | -2/Protoforge | Destroyed V109-s 31288 | -2/Protoforge | Spotted V585-h 31290 | -2/Protoforge | Destroyed V585-h 31303 | -2/Protoforge | Found Prototype Launcher 31303 | -2/Protoforge | Identified Enh. Gamma Bomb Array 31361 | -2/Protoforge | Destroyed 14 combat bots 31485 | -2/Protoforge | Found Faulty Cep. Fieldthrust Drive 31608 | -2/Protoforge | Destroyed 18 combat bots 31671 | -2/Protoforge | Spotted Hotshot 31682 | -2/Protoforge | Destroyed Hotshot 31687 | -2/Protoforge | Spotted Hotshot 31724 | -2/Protoforge | Allies destroyed Hotshot 31731 | -2/Protoforge | High security lockdown imminent 31731 | -2/Protoforge | Destroyed Superfortress 31747 | -2/Protoforge | Destroyed Immortal 31757 | -2/Protoforge | Destroyed Hotshot 31771 | -2/Protoforge | Lost 6 allies 31791 | -2/Protoforge | Destroyed 10 combat bots 31811 | -2/Protoforge | High security lockdown engaged 31832 | -2/Protoforge | Spotted Overlord 31836 | -2/Protoforge | Destroyed Overlord 31868 | -2/Protoforge | Destroyed 11 combat bots 31915 | -2/Protoforge | Build established: Construct 32116 | -2/Protoforge | Spotted Executioner 32118 | -2/Protoforge | Spotted Executioner 32119 | -2/Protoforge | Spotted Executioner 32120 | -2/Protoforge | Destroyed Striker 32123 | -2/Protoforge | Destroyed Executioner 32123 | -2/Protoforge | Destroyed Executioner 32131 | -2/Protoforge | Destroyed Executioner 32178 | -2/Protoforge | Destroyed 19 combat bots 32227 | -2/Protoforge | Found Cep. Beam Splitter 32230 | -2/Protoforge | Found Exp. Remote Shield 32233 | -2/Protoforge | Found Prototype Device 32233 | -2/Protoforge | Identified Exp. Force Field 32273 | -2/Protoforge | Found Exp. Force Field 32360 | -2/Protoforge | Destroyed 9 combat bots 32377 | -2/Protoforge | Destroyed Investigator 32379 | -2/Protoforge | Spotted Striker 32396 | -2/Protoforge | Destroyed Striker 32403 | -2/Protoforge | Spotted Investigator 32405 | -2/Protoforge | Scanned by Researcher 32408 | -2/Protoforge | Destroyed Investigator 32416 | -2/Protoforge | Destroyed Striker 32430 | -2/Protoforge | Spotted Executioner 32442 | -2/Protoforge | Destroyed Executioner 32497 | -2/Protoforge | Destroyed 61 combat bots 32634 | -2/Protoforge | Found Faulty Cep. Lightning Penetrator 32664 | -2/Protoforge | Found Faulty Cep. Lightning Penetrator 32681 | -2/Protoforge | Found Cep. Lightning Penetrator 32714 | -2/Protoforge | Spotted Striker 32714 | -2/Protoforge | Spotted Striker 32718 | -2/Protoforge | Warped through subspace to slip node 32775 | -2/Protoforge | Spotted Decapitator 32775 | -2/Protoforge | Spotted Decapitator 32775 | -2/Protoforge | Spotted Decapitator 32776 | -2/Protoforge | Spotted Decapitator 32778 | -2/Protoforge | Core integrity fell below 20% 32780 | -2/Protoforge | Destroyed Decapitator 32784 | -2/Protoforge | Destroyed Decapitator 32831 | -2/Protoforge | Spotted Striker 32831 | -2/Protoforge | Spotted Executioner 32831 | -2/Protoforge | Spotted Executioner 32831 | -2/Protoforge | Spotted Striker 32831 | -2/Protoforge | Spotted Executioner 32831 | -2/Protoforge | Entered Access 32831 | -1/Access | Evolved 2 slots: Utility x2 32855 | -1/Access | High security lockdown imminent 32866 | -1/Access | Identified exit to Surface 32935 | -1/Access | High security lockdown engaged 33273 | -1/Access | Spotted Investigator 33277 | -1/Access | Destroyed Investigator 33302 | -1/Access | Spotted Executioner 33303 | -1/Access | Destroyed Executioner 33393 | -1/Access | Destroyed 35 combat bots 33587 | -1/Access | Found Prototype Launcher 33587 | -1/Access | Identified Tactical Quantum Warhead 33590 | -1/Access | Found Tactical Quantum Warhead 33633 | -1/Access | Spotted Striker 33634 | -1/Access | Spotted Striker 33635 | -1/Access | Destroyed Striker 33636 | -1/Access | Destroyed Striker 33657 | -1/Access | Spotted Striker 33660 | -1/Access | Spotted Executioner 33660 | -1/Access | Spotted Striker 33665 | -1/Access | Destroyed Striker 33665 | -1/Access | Destroyed Executioner 33683 | -1/Access | Destroyed Striker 33686 | -1/Access | Spotted Striker 33686 | -1/Access | Spotted Striker 33689 | -1/Access | Destroyed Striker 33690 | -1/Access | Destroyed Striker 33702 | -1/Access | Spotted Striker 33703 | -1/Access | Spotted Executioner 33703 | -1/Access | Spotted Striker 33721 | -1/Access | Destroyed Striker 33725 | -1/Access | Destroyed Striker 33725 | -1/Access | Destroyed Executioner 33756 | -1/Access | Destroyed 58 combat bots 33842 | -1/Access | Spotted Striker 33847 | -1/Access | Destroyed Striker 33869 | -1/Access | Destroyed 9 combat bots 33958 | -1/Access | Destroyed 16 combat bots 34015 | -1/Access | Spotted Striker 34015 | -1/Access | Spotted Executioner 34015 | -1/Access | Spotted Striker 34017 | -1/Access | Spotted Executioner 34018 | -1/Access | Destroyed Striker 34018 | -1/Access | Spotted Executioner 34019 | -1/Access | Spotted Striker 34019 | -1/Access | Spotted Executioner 34020 | -1/Access | Destroyed Striker 34021 | -1/Access | Destroyed Executioner 34021 | -1/Access | Spotted Striker 34022 | -1/Access | Destroyed Executioner 34024 | -1/Access | Destroyed Executioner 34024 | -1/Access | Destroyed Executioner 34028 | -1/Access | Destroyed Striker 34029 | -1/Access | Spotted Investigator 34030 | -1/Access | Destroyed Striker 34031 | -1/Access | Destroyed Investigator 34061 | -1/Access | Destroyed 18 combat bots 34152 | -1/Access | Energy Cycler disabled 34179 | -1/Access | Found Spectral Analyzer 34206 | -1/Access | Spotted B-99 Colossus 34223 | -1/Access | Destroyed B-99 Colossus 34314 | -1/Access | Spotted Executioner 34315 | -1/Access | Spotted Executioner 34321 | -1/Access | Destroyed Executioner 34327 | -1/Access | Destroyed Executioner 34390 | -1/Access | Destroyed 10 combat bots 34421 | -1/Access | Found Prototype Processor 34422 | -1/Access | Identified Exp. Core Analyzer 34518 | -1/Access | Spotted Executioner 34518 | -1/Access | Spotted Executioner 34520 | -1/Access | Spotted Executioner 34528 | -1/Access | Destroyed Executioner 34533 | -1/Access | Spotted Executioner 34534 | -1/Access | Destroyed Executioner 34535 | -1/Access | Destroyed Executioner 34540 | -1/Access | Destroyed Executioner 34541 | -1/Access | Destroyed Executioner 34551 | -1/Access | Spotted Striker 34551 | -1/Access | Spotted Striker 34557 | -1/Access | Destroyed Striker 34566 | -1/Access | Destroyed Striker 34620 | -1/Access | Spotted Executioner 34620 | -1/Access | Spotted Striker 34627 | -1/Access | Spotted Executioner 34632 | -1/Access | Destroyed Striker 34633 | -1/Access | Destroyed Executioner 34634 | -1/Access | Destroyed Executioner 34636 | -1/Access | Spotted Executioner 34647 | -1/Access | Destroyed Executioner 34673 | -1/Access | Spotted Striker 34681 | -1/Access | Destroyed Striker 34738 | -1/Access | Destroyed 59 combat bots 34782 | -1/Access | Sterilization system engaged 34825 | -1/Access | Spotted Executioner 34825 | -1/Access | Spotted Executioner 34830 | -1/Access | Spotted Striker 34830 | -1/Access | Spotted Striker 34831 | -1/Access | Spotted Executioner 34832 | -1/Access | Spotted Executioner 34833 | -1/Access | Spotted Striker 34833 | -1/Access | Spotted Executioner 34836 | -1/Access | Spotted Executioner 34837 | -1/Access | Destroyed Executioner 34838 | -1/Access | Destroyed Striker 34840 | -1/Access | Destroyed Striker 34843 | -1/Access | Destroyed Executioner 34844 | -1/Access | Destroyed Executioner 34846 | -1/Access | Destroyed Executioner 34848 | -1/Access | Destroyed Striker 34849 | -1/Access | Destroyed Executioner 34851 | -1/Access | Destroyed Executioner 34861 | -1/Access | Spotted Striker 34867 | -1/Access | Spotted Striker 34867 | -1/Access | Spotted Executioner 34867 | -1/Access | Spotted Striker 34868 | -1/Access | Destroyed Striker 34869 | -1/Access | Spotted Executioner 34869 | -1/Access | Spotted Striker 34874 | -1/Access | Destroyed Striker 34874 | -1/Access | Destroyed Striker 34889 | -1/Access | Destroyed Executioner 34894 | -1/Access | Destroyed Executioner 34901 | -1/Access | Spotted Executioner 34913 | -1/Access | Destroyed Executioner 34914 | -1/Access | Destroyed Striker 34931 | -1/Access | Spotted Executioner 34935 | -1/Access | Destroyed 45 combat bots 34939 | -1/Access | Spotted Executioner 34942 | -1/Access | Destroyed Executioner 34980 | -1/Access | Spotted Executioner 34994 | -1/Access | Destroyed Executioner 34996 | -1/Access | Destroyed Executioner 35055 | -1/Access | Destroyed 32 combat bots 35082 | -1/Access | Ambient heat levels rising (+10) 35093 | -1/Access | Destroyed Executioner 35114 | -1/Access | Found Exp. Core Analyzer 35232 | -1/Access | Ambient heat levels rising (+10) 35236 | -1/Access | Destroyed 12 combat bots 35368 | -1/Access | System corruption reached 10% 35382 | -1/Access | Ambient heat levels rising (+10) 35532 | -1/Access | Ambient heat levels rising (+10) 35672 | -1/Access | Spotted B-99 Colossus 35682 | -1/Access | Ambient heat levels rising (+10) 35721 | -1/Access | Destroyed B-99 Colossus 35733 | -1/Access | Found Prototype Ballistic Gun 35832 | -1/Access | Ambient heat levels rising (+10) 35881 | -1/Access | Identified Multirail 35982 | -1/Access | Ambient heat levels rising (+10) 36132 | -1/Access | Ambient heat levels rising (+10) 36222 | -1/Access | Found Prototype Launcher 36226 | -1/Access | Found Prototype Launcher 36238 | -1/Access | Identified Ragnarok Missile Launcher (x2) 36282 | -1/Access | Ambient heat levels rising (+10) 36432 | -1/Access | Ambient heat levels rising (+10) 36582 | -1/Access | Ambient heat levels rising (+10) 36732 | -1/Access | Ambient heat levels rising (+10) 36882 | -1/Access | Ambient heat levels rising (+10) 36918 | -1/Access | Discovered new exit (range 10) 37032 | -1/Access | Ambient heat levels rising (+10) 37182 | -1/Access | Ambient heat levels rising (+10) 37255 | -1/Access | Entered Command 37280 | -1/Command | Spotted Striker 37280 | -1/Command | Destroyed Striker 37282 | -1/Command | Spotted Striker 37290 | -1/Command | Destroyed Striker 37332 | -1/Command | Found Gamma Bomb Array 37401 | -1/Command | Found Prototype Protection 37462 | -1/Command | High security lockdown imminent 37542 | -1/Command | High security lockdown engaged 37739 | -1/Command | Phase Generator disabled 37795 | -1/Command | Destroyed Striker 37797 | -1/Command | Spotted Executioner 37808 | -1/Command | Destroyed Executioner 37821 | -1/Command | Spotted Executioner 37826 | -1/Command | Destroyed Executioner 37859 | -1/Command | Destroyed 10 combat bots 37879 | -1/Command | Spotted Investigator 37883 | -1/Command | Destroyed Investigator 37933 | -1/Command | Spotted Investigator 37935 | -1/Command | Destroyed Investigator 38001 | -1/Command | Spotted Striker 38002 | -1/Command | Destroyed Striker 38004 | -1/Command | Spotted Striker 38010 | -1/Command | Destroyed Striker 38065 | -1/Command | Destroyed 51 combat bots 38160 | -1/Command | Spotted Striker 38169 | -1/Command | Destroyed Striker 38216 | -1/Command | Spotted Striker 38241 | -1/Command | Destroyed Striker 38241 | -1/Command | Spotted Striker 38242 | -1/Command | Spotted Striker 38244 | -1/Command | Destroyed Striker 38262 | -1/Command | Destroyed Striker 38275 | -1/Command | Spotted Striker 38275 | -1/Command | Spotted Executioner 38281 | -1/Command | Destroyed Striker 38287 | -1/Command | Destroyed Executioner 38321 | -1/Command | Destroyed 29 combat bots 38419 | -1/Command | Destroyed Executioner 38426 | -1/Command | Spotted Executioner 38453 | -1/Command | Destroyed Executioner 38482 | -1/Command | Found Exp. Core Analyzer 38488 | -1/Command | Destroyed 9 combat bots 38540 | -1/Command | Spotted Executioner 38559 | -1/Command | Destroyed Executioner 38567 | -1/Command | Spotted Striker 38571 | -1/Command | Spotted Striker 38576 | -1/Command | Destroyed Striker 38601 | -1/Command | Destroyed Striker 38631 | -1/Command | Destroyed 17 combat bots 38649 | -1/Command | Spotted Executioner 38649 | -1/Command | Spotted Executioner 38650 | -1/Command | Destroyed Executioner 38668 | -1/Command | Destroyed Executioner 38677 | -1/Command | Spotted Executioner 38680 | -1/Command | Spotted Striker 38680 | -1/Command | Spotted Executioner 38701 | -1/Command | Destroyed Executioner 38702 | -1/Command | Destroyed Executioner 38711 | -1/Command | Spotted Executioner 38711 | -1/Command | Spotted Striker 38716 | -1/Command | Destroyed Striker 38716 | -1/Command | Spotted Striker 38723 | -1/Command | Destroyed Executioner 38734 | -1/Command | Destroyed Striker 38758 | -1/Command | Destroyed 21 combat bots 38821 | -1/Command | Spotted Executioner 38821 | -1/Command | Spotted Executioner 38828 | -1/Command | Destroyed Executioner 38831 | -1/Command | Destroyed Executioner 38852 | -1/Command | Destroyed 8 combat bots 38894 | -1/Command | Build established: Scavenger-Construct 39335 | -1/Command | Build established: Construct 40336 | -1/Command | Found Unknown Device 40336 | -1/Command | Identified Adv. Force Booster 40605 | -1/Command | Identified Centrium Heavy Armor Plating 40813 | -1/Command | Destroyed Striker 40899 | -1/Command | Build established: Scavenger-Construct 40906 | -1/Command | Spotted Combat Programmer 40906 | -1/Command | Spotted Combat Programmer 40906 | -1/Command | Destroyed Combat Programmer 40912 | -1/Command | Destroyed Combat Programmer 40929 | -1/Command | Spotted M Guard 40929 | -1/Command | Spotted M Guard 40939 | -1/Command | Destroyed M Guard 40954 | -1/Command | Destroyed M Guard 40954 | -1/Command | All MAIN.C guards destroyed 40979 | -1/Command | Found Prototype Reactor 40981 | -1/Command | Found AEGIS Remote Shield 40984 | -1/Command | Found AEGIS Remote Shield 41335 | -1/Command | Met MAIN.C 41420 | -1/Command | Destroyed MAIN.C Shell 41422 | -1/Command | MAIN.C activated Command garrisons 41440 | -1/Command | Destroyed MAIN.C 41449 | -1/Command | Identified Zero-point Reactor 41449 | -1/Command | Discovered exit to Surface (range 67) 41449 | -1/Command | Discovered exit to Surface (range 54) 41449 | -1/Command | Extracted map data and part IDs from MAIN.C's data core 41483 | -1/Command | Interfaced with 0b10 Conduit 41483 | *** | Assimilated 0b10! Last Messages --------------- because you don't stand a chance against the true might of 0b10. [Decision: Attack] 41422_ MAIN.C: "So be it!" 41422_ ALERT: All Command garrisons activated. 41422_ MAIN.C knocked back. 41424_ Enh. Nova Cannon+ blasted off. 41424_ Knocked back. 41424_ MAIN.C knocked back. 41427_ Knocked back. 41438_ System corrupted: Heat flow error (+108). 41440_ MAIN.C: "I hope you know you're still going to DIE HERE WITH ME!" 41440_ MAIN.C destroyed. 41442_ Acquired 30 matter. 41449_ EXIT=FOUND: SURFACE 41449_ Acquired data core, extracted map data and part IDs. 41453_ Acquired 298 matter. 41483_ Interfacing with system... Map ----- +----------------------------------------------------+ | ????????????????????????????????????????????#?#?#? | | ????????????????????????????????????????????#?#?#? | | ????????????????????????????????????????????#?#?#? | | ????????????????????????????????????????????#?#?#? | | ????????????????????????????????????????????#?#?#? | | ????????????????????????????????????????????#?#?#? | | ????????????????????????????????????????????#?#?#? | | ????????????????????????????????????????????#?#?#? | | ################################################## | | ################################################## | | ################################################## | | ################################################## | | ################################################## | | ################################################## | | ################################################## | | ################################################## | | ###### #####""""""" """" ############# | | ###### #####"" "" ############# | | ###### #####""""" "" ############# | | ###### #####""""""""""" + | | ###### #####" " """ ; | | # #####"" """""" ; | | + #####"" """""" ############# | | # ##### " """""" ############# | | # ##### " "" ############# | | # ##### " "@ ""############# | | # #####""""""""" """""""############# | | ## # #####"" """""""""############# | | ## ########### """""""""""############# | | # ########## " " " " ############# | | ######## " " " " ############# | | " " " """" " ############# | | """ " " """" ############# | | " " " " ############# | | # ######## """""""""" " ############# | | ######### " """ " """"""""############# | | # ######## """ " " " ############# | | ########################################### | | ############################################ | | # # ############################################ | | # ############################################### | | ############################################## | | ############################################## | | ! #???????????????????????????????????????#?#?#? | | #???????????????????????????????????????#?#?#? | | ########????????????????????????????????????#?#?#? | | !! #????????????????????????????????????#?#?#? | | !! #????????????????????????????????????#?#?#? | | !! #????????????????????????????????????#?#?#? | | #????????????????????????????????????#?#?#? | +----------------------------------------------------+ Best States ------------- Heat Dissipation 139 Coolant Potential 200 Energy Generation 120 Energy Capacity 5762 Matter Stores 300 Matter Capacity 300 Sight Range 24 Robot Scan Range 20 Terrain Scan Range 16 Terrain Scan Density 10 ECM Strength 1 Jamming Range 16 Cloak Strength 4 Additional Mass Support 9 EM Shielding 4 Corruption Containment 12 Armor Coverage 825 Resistance: TH 60 Resistance: EM 100 Core Shielding 30 Point Defense Rating 240 Weapon Cycling 25 Melee Speed Boost 20 Phase Shifting 25 Evasion (%) 94 Targeting Accuracy 30 Core Analysis 8 Armor Integrity Analysis 40 Recoil Reduction 6 Particle Charging 20 Force Boost 40 Offensive Hacking 12 Defensive Hacking 10 Relay Coupler Types 2 Relay Coupler Value 67 Authchip Count 1 Item Schematics ----------------- Huge Storage Unit | -8/Materials | Hacked Cargo Storage Unit | -8/Recycling | Hacked Hrd. Medium Armor Plating | -8/Recycling | Hacked Adv. Sensor Array | -6/Factory | Hacked Mak. Microdissipator Network | -5/Factory | Scanalyzed Adv. Heavy Treads | -5/Factory | Hacked Prc. Energy Filter | -3/Testing | Archive Imp. Energy Well | -3/Testing | Archive Adv. Micro-nuke Launcher | -3/Testing | Archive Cld. Phase Gun | -3/Testing | Archive Exp. Matter Compressor | -3/Testing | Archive Enh. Multireflex Exoskeleton | -2/Protoforge | Archive Hvy. Antimatter Reactor | -2/Protoforge | Archive Hvy. Proton Missile Launcher | -2/Protoforge | Archive Adv. Thermal Defense Suite | -2/Protoforge | Archive Thermal Defense Suite | -2/Protoforge | Archive Cld. Impulse Thruster | -2/Protoforge | Archive Enh. Armored Heavy Treads | -2/Protoforge | Archive Com. Mass Driver | -2/Protoforge | Archive Spectral Analyzer | -2/Protoforge | Archive Exp. Cooling System | -2/Protoforge | Archive Centrium Medium Armor Plating | -2/Protoforge | Archive Exp. Flexi-carbon Leg | -2/Protoforge | Archive Exp. Optical Array | -2/Protoforge | Archive Adv. Matter Compressor | -2/Protoforge | Archive Exp. EM Disruption Field | -2/Protoforge | Archive Exp. Signal Interpreter | -2/Protoforge | Archive Exp. System Shield | -2/Protoforge | Archive Robot Schematics ------------------ A-15 Conveyor | -3/Testing | Archive A-02 Transporter | -3/Testing | Archive G-73 Enforcer | -2/Protoforge | Archive H-88 Terminator | -2/Protoforge | Archive A-27 Freighter | -2/Protoforge | Archive O-32 Director | -2/Protoforge | Archive Fabricated ------------ Huge Storage Unit | x1 | -6/Factory Repaired ---------- Lgt. Treads | 30% | -10/Materials Studied --------- Com. Wheel | -8/Materials | Hacked Lgt. Treads | -8/Materials | Hacked Flak Gun | -5/Factory | Hacked Hvy. Machine Gun | -3/Testing | Hacked Field Propulsion Drive | -3/Testing | Hacked Imp. Antigrav System | -2/Research | Hacked Adv. Remote Datajack | -2/Quarantine | Hacked Enh. Nova Cannon | -2/Quarantine | Hacked Alien Tech Used ----------------- Dimensional Node Initializer High-powered Transdimensional Reconstructor Transdimensional Reconstructor Phase Armor Concept Nanofilaments [Conductive] Achievements -------------- Analysis Probe Deductive Reasoning Hack The Planet Hackerman IP Theft Irresistible Scrap Join The Dark Side Let Me Out Of Here Mindtrick Powerful Protocols Satisfying Versatile Watcher Gambling You Will Be Upgraded Zeroed Repercussions Challenges ------------ None Game ------ Seed CatalystAngularTurretformer Manual? 0 Play Time 08:57:20 Cumulative 821.7 hours Start 2025.11.13 @ 21:08:32 End 2025.11.19 @ 22:53:48 Sessions 11 Manual Loads 0 Difficulty Rogue Special Mode None Game No. 183 Rogue 183 Adventurer 0 Explorer 0 Win Type 4 Total 50 Types 13/9/10/2/2/1/9/2/1/1 Lore% 82 Gallery% 86 Achievement% 71 Wizard Run 0 Options --------- Layout 1 ASCII 0 Keyboard 0 Movement Mouse Keybinds 0 Fullscreen 1 Font 24/Smallcaps Map View 50x35 Zoom Use 0% Tactical HUD 1 Map Filters NONE Filters NONE Steam 1 RUN: 797dcfa3-f7dc-4ae2-91d5-af861bcf2cd9